Cogmind - Beta 11.1 @@@ ROGUE MODE // 2022.05.18 @ 18:52:37 Player: Benkyo Result: Heading to fleet! Performance ------------- Evolutions (9) 4500 Regions Visited (36) 7200 Robots Destroyed (420) 2100 Value Destroyed (21934) 21934 Prototype IDs (330) 6600 Alien Tech Used (20) 4000 Bonus (58432) 58432 TOTAL SCORE: 104766 Bonus ------- Triggered Max Security 1000 High Alert Combat Kills 2640 Follower Combat Kills 1069 Aligned with FarCom 300 Met Data Miner 300 Destroyed Z-Imprinter 1000 Triggered Deep Caves Wall 500 Exposed GOLEM Chamber 500 Met Zhirov 300 Met Warlord at Base 500 MAIN.C Attacked Warlord 500 Warlord Defense Kills 582 Used Core Reset Matrix 3000 Integrated Exoskeleton 5000 Destroyed MAIN.C Guards 500 Met MAIN.C 5000 Destroyed MAIN.C Shell 5000 Destroyed MAIN.C 10000 Met Architect 300 Destroyed A8 300 Destroyed A6 400 Destroyed A5 500 Destroyed A4 700 Destroyed A3 800 Destroyed A2 1000 Destroyed Architect 15000 Win 3000 Friendly Fire -1259 Cogmind --------- Core Integrity 372/1850 Matter 405/425 Energy 336/340 System Corruption 0% Temperature Cool (0) Movement Walking (30) Location To Fleet Rendezvous Parts ------- > --- POWER (1) -------- Zero-point Reactor > --- PROPULSION (3) --- Sigix Exoskeleton > --- UTILITY (5) ------ Improved Armor Integrity Analyzer Experimental Weapon Cycler Advanced Phase Shifter Graphene Brace Experimental Force Field > --- WEAPON (2) ------- Sigix Shearcannon > --- INVENTORY (5) ---- Experimental Energy Well (600) Integrity Redistributor Core Cannon Peak State ------------ > --- POWER ------------ Zero-point Reactor > --- PROPULSION ------- Sigix Exoskeleton > --- UTILITY ---------- Improved Armor Integrity Analyzer Advanced Phase Shifter Experimental Force Field Architect God Chip A Architect God Chip D > --- WEAPON ----------- Sigix Shearcannon > --- INVENTORY -------- Experimental Energy Well High-powered Transdimensional Reconstructor Integrity Redistributor Core Cannon [Rating: 249] Favorites ----------- Power Assembled Flux Generator Engine Heavy Ion Engine Power Core Neutrino Core Reactor Assembled Flux Generator Propulsion Assembled Alloy Leg Treads Light Treads Leg Assembled Alloy Leg Wheel Compact Wheel Hover Unit Makeshift Hover Unit Utility Improved Signal Interpreter Device Experimental Sensor Array Storage Huge Storage Unit Processor Improved Signal Interpreter Hackware Advanced Hacking Suite Protection Assembled Alloy Armor Artifact Phase Armor Weapon Assembled Focal Cannon Energy Gun Improved Lightning Gun Energy Cannon Assembled Focal Cannon Ballistic Gun Autogun Ballistic Cannon Slug Cannon Launcher Improved Grenade Launcher Special Weapon Improved Remote Datajack Impact Weapon Heavy Flail Slashing Weapon Chainsword Piercing Weapon CR-A16's Pointy Stick Special Melee Weapon Improved Datajack Build | -11 -10 -10 -9 -9 -9 -8 -8 -7 -7 -7 -7 -6 -6 -6 -6 -6 -6 -5 -5 -5 -5 -5 -4 -4 -4 -4 -4 -3 -3 -3 -2 -2 -2 -1 -1 -1 ------- Run | Scr Mat Min Mat Min Exi Min Mat Fac Low Low Dat Pro Fac Low Low Zio Dee Pro Fac Upp Upp Zhi Pro Fac Upp Upp War Pro Res Qua Res Tes Sec Acc Com Ac0 Slots Evolved 18 | . . . 2 . . . 2 2 . . . . 2 . . . . . 2 . . . . 2 . . . . 2 . 2 . . 2 . . Power 2 | . . . . . . . . . . . . . 1 . . . . . . . . . . . . . . . 1 . . . . . . . Propulsion 2 | . . . . . . . . . . . . . . . . . . . . . . . . . . . . . . . 2 . . . . . Utility 13 | . . . 2 . . . 2 2 . . . . 1 . . . . . 2 . . . . 2 . . . . . . . . . 2 . . Weapon 1 | . . . . . . . . . . . . . . . . . . . . . . . . . . . . . 1 . . . . . . . Parts Attached 603 | 3 16 11 48 2 32 16 26 8 8 13 2 18 19 22 20 3 38 4 4 4 1 9 8 15 4 14 8 5 31 28 11 18 58 15 26 35 Power 24 | 1 1 . 4 . 1 . . . . . . . 1 . 1 1 1 . . . . 2 . . . . . . 3 2 . . 3 1 2 . Engine 7 | 1 1 . 4 . . . . . . . . . 1 . . . . . . . . . . . . . . . . . . . . . . . Core 2 | . . . . . . . . . . . . . . . 1 1 . . . . . . . . . . . . . . . . . . . . Reactor 15 | . . . . . 1 . . . . . . . . . . . 1 . . . . 2 . . . . . . 3 2 . . 3 1 2 . Propulsion 40 | 2 6 4 6 1 5 4 2 . . . . . . . . . 2 . . . . 1 . . . . . . . 2 2 . 3 . . . Treads 21 | 2 4 2 4 1 4 . . . . . . . . . . . . . . . . . . . . . . . . . 2 . 2 . . . Leg . | . . . . . . . . . . . . . . . . . . . . . . . . . . . . . . . . . . . . . Wheel 17 | . 2 2 2 . . 4 2 . . . . . . . . . 2 . . . . . . . . . . . . 2 . . 1 . . . Hover 2 | . . . . . 1 . . . . . . . . . . . . . . . . 1 . . . . . . . . . . . . . . Flight . | . . . . . . . . . . . . . . . . . . . . . . . . . . . . . . . . . . . . . Utility 407 | . 5 5 28 1 13 5 21 6 7 8 1 15 17 13 10 . 24 4 4 3 1 4 6 15 3 11 8 4 27 22 9 16 42 14 22 13 Device 256 | . 1 2 14 1 3 1 10 3 3 3 1 8 8 9 6 . 13 4 3 3 1 1 5 9 2 8 5 3 21 17 9 13 30 9 17 10 Storage 24 | . 3 . 1 . 5 . . 1 1 . . 2 1 . . . 1 . . . . . . 1 . . 1 1 1 2 . . 1 . 2 . Processor 20 | . . . 2 . 2 1 1 1 . . . . . 2 . . . . . . . 1 . . . . . . 2 1 . . 3 3 1 . Hackware 12 | . . . . . . . . . . . . . 3 . . . . . 1 . . . . 3 . . . . . 1 . . . 2 . 2 Protection 84 | . 1 3 11 . 3 3 10 1 3 5 . 5 5 2 4 . 10 . . . . 2 1 2 1 3 2 . 3 . . 1 2 . . 1 Artifact 11 | . . . . . . . . . . . . . . . . . . . . . . . . . . . . . . 1 . 2 6 . 2 . Weapon 132 | . 4 2 10 . 13 7 3 2 1 5 1 3 1 9 9 2 11 . . 1 . 2 2 . 1 3 . 1 1 2 . 2 10 . 2 22 Energy Gun 14 | . . . . . 1 2 . . . . . . . 2 . . 5 . . . . . . . 1 . . . . 1 . . . . . 2 Energy Cannon 39 | . . . . . . 2 1 1 . 2 1 1 . 1 4 . . . . . . . . . . . . . . . . 1 10 . 2 13 Ballistic Gun 32 | . 4 1 8 . 6 2 1 . . . . 1 1 3 1 1 2 . . . . . . . . . . . . . . . . . . 1 Ballistic Cannon 5 | . . . . . 3 . 1 . . . . . . . . . . . . . . . . . . . . . . . . . . . . 1 Launcher 19 | . . . . . 2 . . . 1 . . 1 . . 4 . 4 . . 1 . . 2 . . 1 . . . . . . . . . 3 Special Weapon 1 | . . . . . . . . . . . . . . . . . . . . . . . . . . . . 1 . . . . . . . . Impact Weapon 8 | . . 1 2 . . 1 . . . . . . . . . 1 . . . . . . . . . . . . . 1 . 1 . . . 1 Slashing Weapon 8 | . . . . . . . . 1 . 3 . . . 3 . . . . . . . . . . . . . . . . . . . . . 1 Piercing Weapon 5 | . . . . . . . . . . . . . . . . . . . . . . 2 . . . 2 . . 1 . . . . . . . Special Melee Weapon 1 | . . . . . 1 . . . . . . . . . . . . . . . . . . . . . . . . . . . . . . . Unidentified Prototypes 39 | . . . . . . 2 . . . . . 3 . . . . 5 . . . . 4 . . . . 4 . 1 5 . 3 2 . 4 6 Corrupted Parts 1 | . . . . . . . . . . . . . . . . . . . . 1 . . . . . . . . . . . . . . . . System Corruption 2 | . . . . . . . . . . . . . . . . . . . . 2 . . . . . . . . . . . . . . . . Parts Lost 37 | . . . 4 . 6 2 . . . . . . . . . . 5 . . . 1 . 1 . 1 3 . . 7 4 . 1 2 . . . Power 3 | . . . . . . . . . . . . . . . . . 1 . . . . . . . . . . . 1 1 . . . . . . Propulsion 5 | . . . 1 . 2 1 . . . . . . . . . . 1 . . . . . . . . . . . . . . . . . . . Utility 23 | . . . 2 . 2 . . . . . . . . . . . 3 . . . 1 . 1 . 1 3 . . 4 3 . 1 2 . . . Weapon 6 | . . . 1 . 2 1 . . . . . . . . . . . . . . . . . . . . . . 2 . . . . . . . Highest Loss Streak 5 | . . . 4 . 2 2 . . . . . . . . . . 4 . . . 1 . 1 . 1 2 . . 5 2 . 1 1 . . . To Critical Strikes 4 | . . . 1 . 2 . . . . . . . . . . . 1 . . . . . . . . . . . . . . . . . . . Average Slot Usage (%) 88 | . 99 100 98 100 91 97 99 99 94 98 78 90 95 90 99 99 76 85 88 88 87 88 87 88 88 88 89 89 88 86 82 81 82 66 71 71 Engine 2 | . 14 14 10 11 8 . . . . . . . 6 6 4 . . . . . . . . . . . . . . . . . . . . . Reactor 5 | . . . . . 2 11 9 7 7 7 7 7 6 6 6 6 5 6 5 5 5 5 5 5 5 4 5 5 8 8 8 8 7 9 9 9 Treads 3 | . 25 5 9 22 22 6 . . . . . . . . . . . . . . . . . . . . . . . . 4 4 3 . . . Leg 4 | . . . . . . . . . . . . . . . . . 4 12 11 11 11 11 10 10 10 10 10 10 9 . . . . 9 9 9 Wheel 5 | . 2 22 12 . . 15 18 15 15 15 15 15 13 13 13 13 8 . . . . . . . . . . . . 8 8 8 7 . . . Device 18 | . . 4 9 11 7 2 17 26 20 22 14 21 21 15 20 20 12 19 24 23 22 19 22 28 22 25 29 27 23 21 17 18 18 18 31 35 Storage 9 | . 13 14 11 11 10 11 9 7 6 7 7 14 8 6 6 6 9 13 11 11 11 11 11 10 10 10 10 10 13 14 13 11 7 . 3 . Processor 10 | . . . 11 11 13 12 18 15 13 7 7 7 6 14 13 13 13 13 11 11 11 15 16 10 10 10 10 8 8 9 8 8 11 11 6 9 Hackware 1 | . . . . . . . . . . . . . 8 . . . . . 3 5 5 3 . 2 5 5 5 5 . 2 4 4 2 . . . Protection 8 | . 13 9 11 11 11 18 9 10 12 21 10 7 9 12 18 20 5 6 5 5 5 7 5 10 13 10 6 10 8 2 . . 4 . . . Energy Cannon 7 | . . . . . . 9 8 7 7 6 . 5 6 5 10 12 4 12 11 10 11 9 10 10 9 9 10 9 13 13 13 12 12 9 9 8 Ballistic Gun 3 | . 27 22 21 22 7 6 5 3 . . . 4 6 3 . . 1 . . . . . . . . . . . . . . . . . . . Naked Turns . | . . . . . . . . . . . . . . . . . . . . . . . . . . . . . . . . . . . . . Heaviest Build 287 | 3 54 54 63 64 72 89 85 88 145 92 142 287 287 194 145 145 202 159 161 159 159 159 160 169 171 171 171 165 202 234 239 237 229 60 75 56 Greatest Support 80 | 3 40 42 42 43 43 40 32 32 32 32 32 32 32 32 32 32 60 60 80 80 80 80 80 80 60 80 80 80 80 60 40 60 60 60 60 60 Greatest Overweight (x) 14 | . 1 1 1 1 3 5 4 2 4 2 4 8 8 6 4 4 14 2 2 1 1 2 1 2 2 2 2 2 3 5 5 5 10 . 1 . Average Overweight (x) 2 | . . 1 1 1 . 2 3 2 2 2 2 7 4 4 3 4 4 2 1 1 1 1 1 2 2 2 2 1 2 4 5 4 4 . . . Largest Inventory Capacity 35 | 5 20 20 20 20 20 20 20 20 20 20 20 35 35 25 25 25 25 25 25 25 25 25 25 25 25 25 25 25 25 25 25 25 25 5 15 5 Average Capacity 22 | 5 17 20 20 20 19 20 20 20 19 20 20 34 27 25 25 25 25 25 25 25 25 25 25 25 25 25 25 25 25 25 25 25 24 5 7 5 Most Carried 33 | 5 20 20 20 20 20 20 20 20 20 20 20 31 33 25 25 25 25 25 25 25 25 25 25 25 25 25 25 25 25 25 25 25 25 5 10 5 Average Carried 22 | 3 13 19 19 19 16 19 19 19 19 19 19 28 26 24 24 24 23 24 24 24 24 24 24 24 24 24 24 24 24 24 24 24 23 4 7 4 Final Capacity 35 | 5 20 20 20 20 20 20 20 20 20 20 20 35 25 25 25 25 25 25 25 25 25 25 25 25 25 25 25 25 25 25 25 25 5 5 5 5 Final Carried 31 | 5 20 20 20 20 20 20 20 20 19 20 20 31 25 25 25 25 25 25 25 25 25 25 25 25 25 24 25 25 24 25 25 25 5 5 5 4 Class Distribution -------------------- 25% | Golem 18% | Mutant 14% | Scavenger-Mutant 6% | Skirmisher 5% | Scavenger-Skirmisher 4% | Generator-Golem 4% | Alien-Sigix 3% | Generator-Skirmisher Dominant Class ---------------- Mutant | -10/Materials Mutant | -10/Mines Mutant | -9/Materials Mutant | -9/Mines Mutant | -9/Exiles Scavenger-Mutant | -8/Mines Scavenger-Skirmisher | -8/Materials Scavenger-Skirmisher | -7/Factory Scavenger-Mutant | -7/Lower Caves Scavenger-Skirmisher | -7/Lower Caves Scavenger-Mutant | -7/Data Miner Hauler-Skirmisher | -6/Proximity Caves Scavenger-Mutant | -6/Factory Scavenger-Mutant | -6/Lower Caves Scavenger-Mutant | -6/Lower Caves Scavenger-Mutant | -6/Zion Scavenger-Mutant | -6/Deep Caves Golem | -5/Proximity Caves Golem | -5/Factory Golem | -5/Upper Caves Skirmisher | -5/Upper Caves Golem | -5/Zhirov Golem | -4/Proximity Caves Golem | -4/Factory Skirmisher | -4/Upper Caves Golem | -4/Upper Caves Golem | -4/Warlord Infiltrator-Golem | -3/Proximity Caves Generator-Golem | -3/Research Generator-Golem | -3/Quarantine Generator-Skirmisher | -2/Research Generator-Mutant | -2/Testing Generator-Skirmisher | -2/Section 7 Alien-Sigix | -1/Access Alien-Sigix | -1/Command Alien-Sigix | -1/Access_0 Resources | -11 -10 -10 -9 -9 -9 -8 -8 -7 -7 -7 -7 -6 -6 -6 -6 -6 -6 -5 -5 -5 -5 -5 -4 -4 -4 -4 -4 -3 -3 -3 -2 -2 -2 -1 -1 -1 ----------- Run | Scr Mat Min Mat Min Exi Min Mat Fac Low Low Dat Pro Fac Low Low Zio Dee Pro Fac Upp Upp Zhi Pro Fac Upp Upp War Pro Res Qua Res Tes Sec Acc Com Ac0 Matter Collected 9236 | 230 368 190 1330 79 1039 195 314 24 334 130 . 200 257 282 339 10 535 40 40 61 10 90 85 132 68 230 80 64 250 320 120 154 562 145 569 360 Remotely . | . . . . . . . . . . . . . . . . . . . . . . . . . . . . . . . . . . . . . Salvage Created 27030 | . 551 220 1592 . 195 360 748 45 586 . . . 335 386 123 . 2622 534 728 186 461 406 473 494 49 571 342 108 2073 2832 413 761 2014 . 2575 4247 Parts 1341 | . 47 8 104 . 37 28 44 7 22 . . . 24 10 3 . 51 17 29 12 22 3 27 34 8 28 12 5 101 189 22 32 107 . 63 245 Haulers Intercepted 17 | . 2 . 3 . . . 3 . . . . . . . . . . . 2 . . . . . . . . . 3 1 3 . . . . . Recyclers Shooed 5 | . . . . . . 1 . . . . . . 3 . . . . . . . . . . . . . . . 1 . . . . . . . Parts Field Recycled . | . . . . . . . . . . . . . . . . . . . . . . . . . . . . . . . . . . . . . Retrieved Matter . | . . . . . . . . . . . . . . . . . . . . . . . . . . . . . . . . . . . . . Parts Self-Destructed 227 | . . . . . . . . . 8 5 . 9 . . . 4 . 16 . 7 22 2 25 . . 26 90 13 . . . . . . . . Prevented 41 | . . . . . . . . . 4 3 . . . 8 . . . . . . . . . . . . 26 . . . . . . . . . Kills | -11 -10 -10 -9 -9 -9 -8 -8 -7 -7 -7 -7 -6 -6 -6 -6 -6 -6 -5 -5 -5 -5 -5 -4 -4 -4 -4 -4 -3 -3 -3 -2 -2 -2 -1 -1 -1 ------- Run | Scr Mat Min Mat Min Exi Min Mat Fac Low Low Dat Pro Fac Low Low Zio Dee Pro Fac Upp Upp Zhi Pro Fac Upp Upp War Pro Res Qua Res Tes Sec Acc Com Ac0 Combat Hostiles Destroyed 374 | . 10 5 34 . 4 7 13 . 10 . . . 4 2 5 . 54 9 3 5 12 . 13 7 2 13 5 2 21 37 2 6 32 . 14 43 Melee 4 | . . . 2 . . 2 . . . . . . . . . . . . . . . . . . . . . . . . . . . . . . Guns 56 | . 10 5 32 . 1 1 2 . . . . . 1 1 . . 3 . . . . . . . . . . . . . . . . . . . Cannons 236 | . . . . . . 4 11 . 3 . . . 3 . . . 4 8 3 1 12 . 9 7 2 10 5 2 20 37 2 5 31 . 14 43 AOE 56 | . . . . . 3 . . . 5 . . . . . 5 . 33 . . 4 . . 4 . . 2 . . . . . . . . . . Classes Destroyed 34 | . 6 . 3 . 3 1 . . 2 . . . 2 . . . 4 1 1 . . . . 2 1 2 2 . 1 2 . 1 . . . . Worker 19 | . 2 . 1 . . 2 3 . . . . . 2 . . . . . . . . . . . . . . . 2 3 . 3 1 . . . Builder 10 | . . . . . . . . . . . . . . . . . . . . . . . . . . . . . 2 5 . . 3 . . . Tunneler 2 | . . . . . . 1 . . . . . . . . . . . . . . . . . 1 . . . . . . . . . . . . Hauler 17 | . 2 . 3 . . . 3 . . . . . . . . . . . 2 . . . . . . . . . 3 1 3 . . . . . Recycler 16 | . . . 2 . . 1 2 . . . . . 1 . . . . . 2 . . . . . . . . . 2 2 . . . . 4 . Minesweeper 2 | . . . . . . . . . 1 . . . . . . . . . . . . . . . . . . 1 . . . . . . . . Mechanic 1 | . . . . . . . . . . . . . . . . . . . 1 . . . . . . . . . . . . . . . . . Operator 3 | . 1 . . . . . . . . . . . . . . . . . . . . . . . . . . . . 1 1 . . . . . Drone 4 | . . . . . . . . . . . . . . . . . 4 . . . . . . . . . . . . . . . . . . . Turret 1 | . . . . . 1 . . . . . . . . . . . . . . . . . . . . . . . . . . . . . . . Watcher 21 | . 2 . 4 . . . . 2 . . . . 2 . . . . . 1 . . . . 1 . . . . 3 2 . . 4 . . . Swarmer 80 | . 2 . 11 . . 4 7 . 3 . . . . . . . . 5 . 5 8 . 9 . . 5 1 . 3 13 . . 4 . . . Grunt 60 | . 8 5 12 . . 2 3 . 6 . . . 1 . 3 . . 2 . . 4 . 3 . . 2 . 1 4 4 . . . . . . Brawler 4 | . . . 1 . . . . . . . . . . . 1 . . . . . . . 1 . . . 1 . . . . . . . . . Duelist 2 | . . . . . . . . . . . . . . . . . . 1 . . . . . . . . . . . 1 . . . . . . Protector 2 | . . . . . . . . . . . . . . . . . . . . . . . . . . . 2 . . . . . . . . . Researcher 4 | . . . . . . . . . . . . . . . . . . . . . . . . . . . . . . 1 . . 3 . . . Sentry 24 | . . . 10 . . . 3 . 1 . . . . . . . . . 1 . . . . . . 1 . . . 3 1 . 3 . 1 . Specialist 2 | . . . . . . . . . . . . . . . . . . . . . . . . 2 . . . . . . . . . . . . Hunter 16 | . . . . . . . . . . . . . 1 2 . . . 1 . . . . . . . . . . 4 2 . . 4 . 2 . Programmer 54 | . . . . . . . . . . . . . 2 . 1 . . . 2 . . . . 4 . . . 1 9 13 1 5 14 . 2 . Heavy 2 | . . . . . . . . . . . . . . . . . . . . . . . . 1 . . . . . . . . 1 . . . Behemoth 2 | . . . . . . . . . . . . . . . . . . . . . . . . . . 1 . . 1 . . . . . . . M Guard 2 | . . . . . . . . . . . . . . . . . . . . . . . . . . . . . . . . . . . 2 . M Shell/Atk 2 | . . . . . . . . . . . . . . . . . . . . . . . . . . . . . . . . . . . 2 . M Shell/Def 1 | . . . . . . . . . . . . . . . . . . . . . . . . . . . . . . . . . . . 1 . Enhanced Grunt 29 | . . . . . . . . . . . . . . . . . . . . . . . . . . . . . . . . . . . . 29 Enhanced Sentry 4 | . . . . . . . . . . . . . . . . . . . . . . . . . . . . . . . . . . . . 4 Enhanced Hunter 3 | . . . . . . . . . . . . . . . . . . . . . . . . . . . . . . . . . . . . 3 Combat Programmer 2 | . . . . . . . . . . . . . . . . . . . . . . . . . . . . . . . . . . . 2 . Striker 5 | . . . . . . . . . . . . . . . . . . . . . . . . . . . 1 . . . . . 4 . . . Alpha 7 3 | . . . . . . . . . . . . . . . . . . . . . . . . . . . . . . 1 . . 2 . . . Fortress 1 | . . . . . . . . . . . . . . . . . . . . . . . . . . . . . . . . 1 . . . . Zionite 5 | . . . . . 5 . . . . . . . . . . . . . . . . . . . . . . . . . . . . . . . Z-Technician 3 | . . . . . . . . . . . . . . . . . 3 . . . . . . . . . . . . . . . . . . . Z-Light 6 | . . . . . . . . . . . . . . . . . 6 . . . . . . . . . . . . . . . . . . . Decomposer 13 | . . . . . . . . . 5 . . . . 4 . . . . . 3 . . . . 1 . . . . . . . . . . . Packrat 4 | . . . . . . . . . . . . . . 2 . . . 2 . . . . . . . . . . . . . . . . . . Samaritan 5 | . . . . . . . . . 3 . . . . 1 1 . . . . . . . . . . . . . . . . . . . . . Master Thief 5 | . . . . . . . . . . . . . . . . . . . . . . . . . 2 3 . . . . . . . . . . Assembler 2 | . . . . . . . . . . . . . . . . . 2 . . . . . . . . . . . . . . . . . . . Assembled 32 | . . . . . 3 . . . . . . . . . . . 29 . . . . . . . . . . . . . . . . . . . Golem 19 | . . . . . . . . . . . . . . . . . 19 . . . . . . . . . . . . . . . . . . . Mutant 1 | . . . . . . . . . . . . . . . . . . . . . . . . . . 1 . . . . . . . . . . Commander 1 | . . . . . . . . . . . . . . . . . . . . . . . . . . . 1 . . . . . . . . . Best Kill Streak 31 | . 3 3 8 . 4 4 6 1 5 . . . 5 2 4 . 31 5 5 5 4 . 4 3 2 4 3 1 11 8 2 3 6 . 4 8 Combat Bots Only 29 | . 2 3 7 . 3 4 3 . 5 . . . 2 2 4 . 29 5 2 5 4 . 4 3 2 4 3 1 8 5 1 3 4 . 4 8 Max Kills in Single Turn 19 | . 1 1 1 . 2 1 2 1 2 . . . 2 1 3 . 19 1 1 3 1 . 4 2 1 2 1 1 2 3 1 1 2 . 1 2 Gunslinging . | . . . . . . . . . . . . . . . . . . . . . . . . . . . . . . . . . . . . . Exploded 19 | . . . . . 2 . . . 2 . . . . . 3 . 19 . . 3 . . 4 . . 2 . . . . . . . . . . Melee 1 | . . . 1 . . 1 . . . . . . . . . . . . . . . . . . . . . . . . . . . . . . Uniques/NPCs Destroyed 14 | . . . . . 4 1 . . . . . . . . . . . . . . . . . . . . . . . . . . . . 2 7 8R-AWN (-9/Exiles) EX-DEC (-9/Exiles) EX-BIN (-9/Exiles) EX-HEX (-9/Exiles) CL-ANK (-8/Mines) MAIN.C Shell (-1/Command) MAIN.C (-1/Command) A8 (-1/Access_0) A6 (-1/Access_0) A5 (-1/Access_0) A2 (-1/Access_0) A4 (-1/Access_0) Architect (-1/Access_0) A3 (-1/Access_0) Combat | -11 -10 -10 -9 -9 -9 -8 -8 -7 -7 -7 -7 -6 -6 -6 -6 -6 -6 -5 -5 -5 -5 -5 -4 -4 -4 -4 -4 -3 -3 -3 -2 -2 -2 -1 -1 -1 -------- Run | Scr Mat Min Mat Min Exi Min Mat Fac Low Low Dat Pro Fac Low Low Zio Dee Pro Fac Upp Upp Zhi Pro Fac Upp Upp War Pro Res Qua Res Tes Sec Acc Com Ac0 Damage Taken 21115 | . 243 217 1540 . 1479 330 377 . 116 . . . 451 276 42 . 931 728 . 210 134 . 521 507 27 1804 28 . 2246 1929 82 749 2895 258 1335 1660 Core 3779 | . 36 69 134 . 136 31 36 . 13 . . . 99 37 21 . 87 39 . 36 31 . 27 . 8 129 . . 226 357 13 197 688 258 533 538 Absorbed by Shields 3063 | . . . . . . . . . . . . . . . . . . . . . . . . . . . . . . . . . 836 . 564 1663 Redirected to Core 694 | . . . . . . . . . . . . . . . . . . . . . . . . . . . . . . 212 13 172 297 . . . Redirected to Shielding 354 | . . . . . . . . . . . . . . . . . 222 . . . . . 11 121 . . . . . . . . . . . . Regen/Repaired (Parts) 122 | . . . 122 . . . . . . . . . . . . . . . . . . . . . . . . . . . . . . . . . Core Remaining (%) 65 | 100 . 58 . . . 24 93 . . . . 98 . . . . . 66 . . . . 90 . . . . 88 . 55 . . 27 . . 20 Volleys Fired 1321 | . 51 10 107 1 95 19 39 3 46 . . 6 41 16 21 1 95 30 28 12 34 . 22 30 7 26 35 18 57 87 15 25 117 2 61 164 Largest 3 | . 2 2 2 2 2 2 2 2 2 . . 1 2 2 2 1 2 2 2 2 2 . 2 2 2 2 2 2 3 3 3 3 3 1 1 1 Hottest 325 | . 46 46 46 46 79 131 131 98 116 . . 90 120 120 90 90 120 50 50 50 50 . 50 50 50 68 50 50 75 75 75 75 325 180 300 300 Shots Fired 2381 | . 102 20 215 4 171 61 73 4 50 . . 6 70 23 25 1 202 55 40 21 68 . 41 46 14 50 70 28 131 218 29 45 271 2 61 164 Gun 771 | . 102 20 215 4 142 43 34 1 . . . . 29 15 1 . 165 . . . . . . . . . . . . . . . . . . . Cannon 1556 | . . . . . 17 18 39 3 38 . . 6 41 8 15 1 27 55 40 19 68 . 40 46 14 44 70 26 131 218 29 45 271 2 61 164 Launcher 52 | . . . . . 12 . . . 12 . . . . . 9 . 10 . . 2 . . 1 . . 6 . . . . . . . . . . Special 2 | . . . . . . . . . . . . . . . . . . . . . . . . . . . . 2 . . . . . . . . Kinetic 631 | . 102 20 215 4 131 36 31 1 . . . . 29 1 1 . 60 . . . . . . . . . . . . . . . . . . . Thermal 1319 | . . . . . 28 25 42 3 38 . . 6 41 8 15 1 27 55 40 19 68 . 40 46 14 44 70 26 131 218 29 45 237 . 1 2 Explosive 50 | . . . . . 12 . . . 12 . . . . . 9 . 10 . . . . . 1 . . 6 . . . . . . . . . . Electromagnetic 121 | . . . . . . . . . . . . . . 14 . . 105 . . 2 . . . . . . . . . . . . . . . . Slashing 224 | . . . . . . . . . . . . . . . . . . . . . . . . . . . . . . . . . . 2 60 162 Entropic 34 | . . . . . . . . . . . . . . . . . . . . . . . . . . . . . . . . . 34 . . . Robot Hit Streak 52 | . 8 12 21 4 7 19 12 5 5 . . . 6 7 2 . 52 13 5 3 10 . 11 13 3 11 15 6 16 25 6 9 25 . 30 17 Robot Miss Streak 14 | . 4 2 6 . 3 3 2 . 2 . . 1 14 2 2 . 4 2 4 4 4 . 3 1 2 2 1 2 3 4 1 4 3 . 6 14 Penetration Max 2 | . . . . . . . . . . . . . . . . . . . . . . . . . . . . . . . . . 2 . 1 1 Secondary Targets 8 | . . . 8 . . . . . . . . . . . . . . . . . . . . . . . . . . . . . . . . . Max Gunslinging Chain 1 | . . . 1 . . . . . . . . . . . . . . . . . . . . . . . . . . . . . . . . . Autonomous 87 | . . . . . . 25 . . . . . . . . . . 62 . . . . . . . . . . . . . . . . . . . Shots Hit Robots 1484 | . 62 15 142 3 99 49 40 2 30 . . . 37 22 6 . 152 39 16 7 41 10 26 26 7 39 20 9 82 120 10 22 153 . 50 148 Core Hits 1064 | . 30 6 61 . 33 18 26 2 19 . . . 21 6 10 . 188 10 9 8 14 6 13 12 3 15 10 2 41 72 7 10 67 . 82 263 Critical Kills 13 | . 1 . 3 . . 2 1 . 2 . . . . . 1 . . . . . . . . . . . . . . . . . 3 . . . Critical Parts Destroyed 24 | . . 2 2 . 4 5 . . . . . . 1 . . . 1 . . . . . . . . . . . . . . . 9 . . . Critical Strikes 71 | . 1 2 5 . 8 9 1 . 2 . . . 1 . 1 . 2 . . . . 1 . . . . . . . . . . 20 . 9 9 Burn 2 | . . . . . 2 . . . . . . . . . . . . . . . . . . . . . . . . . . . . . . . Meltdown 4 | . . . . . . . . . 2 . . . . . 1 . . . . . . . . . . . . . . . . . 1 . . . Destroy 29 | . 1 1 3 . 6 4 1 . . . . . 1 . . . 1 . . . . . . . . . . . . . . . 11 . . . Corrupt 1 | . . . . . . . . . . . . . . . . . 1 . . . . . . . . . . . . . . . . . . . Smash 8 | . . 1 2 . . 5 . . . . . . . . . . . . . . . . . . . . . . . . . . . . . . Sever 18 | . . . . . . . . . . . . . . . . . . . . . . . . . . . . . . . . . . . 9 9 Impale 1 | . . . . . . . . . . . . . . . . . . . . . . 1 . . . . . . . . . . . . . . Sunder 8 | . . . . . . . . . . . . . . . . . . . . . . . . . . . . . . . . . 8 . . . Melee Attacks 75 | . . 2 7 . 4 5 . 9 5 3 . . . 8 . 6 . . . . . 10 . . . 9 . . 1 1 . 5 . . . . Kinetic 17 | . . . . . . 5 . . . . . . . . . 6 . . . . . . . . . . . . . 1 . 5 . . . . Impact 9 | . . 2 7 . . . . . . . . . . . . . . . . . . . . . . . . . . . . . . . . . Slashing 25 | . . . . . . . . 9 5 3 . . . 8 . . . . . . . . . . . . . . . . . . . . . . Piercing 20 | . . . . . . . . . . . . . . . . . . . . . . 10 . . . 9 . . 1 . . . . . . . Sneak Attacks 15 | . . . . . 4 1 . . 4 . . . . 5 . . . . . . . . . . . . . . . 1 . . . . . . Combat Hostiles . | . . . . . . . . . . . . . . . . . . . . . . . . . . . . . . . . . . . . . Follow-up Attacks . | . . . . . . . . . . . . . . . . . . . . . . . . . . . . . . . . . . . . . Damage Inflicted 90350 | . 676 259 2283 69 1951 1371 922 51 1541 . . . 1184 901 943 . 8186 1868 830 467 1746 689 1419 1220 350 1911 806 397 4539 6486 501 1190 9823 . 10815 24956 Guns 9110 | . 676 205 2199 43 1300 573 273 . . . . . 322 258 . . 3261 . . . . . . . . . . . . . . . . . . . Cannons 72040 | . . . . . 249 358 649 51 632 . . . 796 227 65 . 1086 1868 830 307 1746 . 1159 1209 350 1333 806 397 4461 6355 501 1011 9823 . 10815 24956 Explosions 6659 | . . . . . 402 . . . 601 . . . 66 46 878 . 3839 . . 160 . . 260 . . 407 . . . . . . . . . . Melee 2407 | . . 44 75 . . 440 . . 308 . . . . 370 . . . . . . . 689 . . . 171 . . . 131 . 179 . . . . Ramming 134 | . . 10 9 26 . . . . . . . . . . . . . . . . . . . 11 . . . . 78 . . . . . . . Kinetic 7662 | . 676 205 2199 43 1246 962 237 . . . . . 322 11 . . 1451 . . . . . . . . . . . . 131 . 179 . . . . Thermal 35123 | . . . . . 303 409 685 51 632 . . . 862 273 65 . 1086 1868 830 307 1746 . 1159 1209 350 1333 806 397 4461 6355 501 1011 8024 . . 400 Explosive 6387 | . . . . . 402 . . . 601 . . . . . 878 . 3839 . . . . . 260 . . 407 . . . . . . . . . . Electromagnetic 2217 | . . . . . . . . . . . . . . 247 . . 1810 . . 160 . . . . . . . . . . . . . . . . Impact 119 | . . 44 75 . . . . . . . . . . . . . . . . . . . . . . . . . . . . . . . . . Slashing 36049 | . . . . . . . . . 308 . . . . 370 . . . . . . . . . . . . . . . . . . . . 10815 24556 Piercing 860 | . . . . . . . . . . . . . . . . . . . . . . 689 . . . 171 . . . . . . . . . . Entropic 1799 | . . . . . . . . . . . . . . . . . . . . . . . . . . . . . . . . . 1799 . . . Highest Corruption 6 | . . . 1 1 2 . . . . . . . 1 . . . . . . 2 . . . . . . . . 1 2 . 3 6 . 2 . Average Corruption 1 | . . . 1 1 1 . . . . . . . 1 . . . . . . 1 . . . . . . . . 1 1 . 1 3 . 1 . Corruption Purged 22 | . . . . . 2 . . . . . . . 1 . . . . . . 2 . . . . . . . . 1 5 . 3 5 . 3 . Corruption Blocked 30 | . . . . . . . . . . . . . . . . . . . . . . . . . . . . . . . . 10 20 . . . Effects 78 | . . . 11 12 23 . . . . . . . . . . . . . . 1 . . . . . . . . . . . 1 27 . 3 . Message Errors 16 | . . . 3 1 9 . . . . . . . . . . . . . . . . . . . . . . . . . . . 3 . . . Matter Fused 25 | . . . 2 3 7 . . . . . . . . . . . . . . 1 . . . . . . . . . . . 1 10 . 1 . Heat Flow Errors 9 | . . . 1 4 1 . . . . . . . . . . . . . . . . . . . . . . . . . . . 3 . . . Energy Discharges 5 | . . . 2 . 1 . . . . . . . . . . . . . . . . . . . . . . . . . . . 1 . 1 . Parts Rejected 1 | . . . . . . . . . . . . . . . . . . . . . . . . . . . . . . . . . 1 . . . Data Loss (minor) 11 | . . . 2 2 3 . . . . . . . . . . . . . . . . . . . . . . . . . . . 4 . . . Data Loss (major) 3 | . . . . . 2 . . . . . . . . . . . . . . . . . . . . . . . . . . . 1 . . . Misfires 4 | . . . 1 2 . . . . . . . . . . . . . . . . . . . . . . . . . . . . 1 . . . Alerts 4 | . . . . . . . . . . . . . . . . . . . . . . . . . . . . . . . . . 3 . 1 . Overload Shots . | . . . . . . . . . . . . . . . . . . . . . . . . . . . . . . . . . . . . . Overflow Damage 4597 | . . 44 54 . . 268 . . 249 . . . 43 307 12 . 151 190 82 60 84 118 138 53 . 39 27 64 295 271 . 72 1438 . 150 388 Projectiles 3408 | . . . . . . 10 . . 121 . . . 37 . . . . 190 82 60 84 . 113 53 . 32 27 64 277 210 . 72 1438 . 150 388 Explosions 247 | . . . . . . . . . 6 . . . 6 40 12 . 151 . . . . . 25 . . 7 . . . . . . . . . . Melee 942 | . . 44 54 . . 258 . . 122 . . . . 267 . . . . . . . 118 . . . . . . 18 61 . . . . . . Knockbacks 4 | . . 1 . . 2 . . . . . . . . . . . . . . . . . . . . . . . 1 . . . . . . . Impact 2 | . . 1 . . . . . . . . . . . . . . . . . . . . . . . . . . 1 . . . . . . . Kinetic 2 | . . . . . 2 . . . . . . . . . . . . . . . . . . . . . . . . . . . . . . . Secondary . | . . . . . . . . . . . . . . . . . . . . . . . . . . . . . . . . . . . . . Self-Inflicted Damage 420 | . . . 4 . 37 . . . 30 . . . . 52 42 . 62 . . 9 . . . . . 184 . . . . . . . . . . Shots 11 | . . . . . 1 . . . 1 . . . . 1 1 . 2 . . 1 . . . . . 4 . . . . . . . . . . Rammed 5 | . . 1 1 3 . . . . . . . . . . . . . . . . . . . . . . . . . . . . . . . . Targets Rammed 12 | . . 1 1 3 . . . . . . . . . . . . . . . . . . . 2 . . . . 5 . . . . . . . Kicked 7 | . . . . . . . . . . . . . . . . . . . . . . . . 2 . . . . 5 . . . . . . . Crushed . | . . . . . . . . . . . . . . . . . . . . . . . . . . . . . . . . . . . . . Highest Temperature 437 | . 39 45 217 198 437 260 39 . 44 . . 14 231 48 132 14 312 14 . . . . 43 . . . . . 14 . . 281 201 . 108 88 Average Temperature 63 | . 8 19 28 80 100 95 12 . 13 . . 10 63 12 55 10 100 6 . . . . 23 . . . . . 5 . . 171 114 . 57 8 Received Heat Transfer 2783 | . 105 48 549 . . 216 207 . 27 . . . 36 . . . 234 135 . . 27 . 228 18 . 180 . . 324 108 9 54 42 . 140 96 Effects 8 | . . . . . 4 . . . . . . . . . . . . . . . . . . . . . . . . . . . 4 . . . Energy Bleed 3 | . . . . . 2 . . . . . . . . . . . . . . . . . . . . . . . . . . . 1 . . . Interference 3 | . . . . . . . . . . . . . . . . . . . . . . . . . . . . . . . . . 3 . . . Short Circuit 1 | . . . . . 1 . . . . . . . . . . . . . . . . . . . . . . . . . . . . . . . Damage (minor) 1 | . . . . . 1 . . . . . . . . . . . . . . . . . . . . . . . . . . . . . . . Siege Activations . | . . . . . . . . . . . . . . . . . . . . . . . . . . . . . . . . . . . . . Robots Corrupted 15 | . . . . . . . . . . . . . . 1 . . 14 . . . . . . . . . . . . . . . . . . . Combat Hostiles 15 | . . . . . . . . . . . . . . 1 . . 14 . . . . . . . . . . . . . . . . . . . Parts Fried 6 | . . . . . . . . . 1 . . . . 4 . . . . . . . . . . . . . . . . . . . . 1 . Impact Corruptions 4 | . . 1 1 . . . . . . . . . . . . . . . . . . . . . . . . . 2 . . . . . . . Robots Melted 6 | . . . . . 1 . . . 2 . . . . . 1 . . 1 . . . . . . . . . . . . . . 1 . . . Combat Hostiles 4 | . . . . . . . . . 2 . . . . . . . . 1 . . . . . . . . . . . . . . 1 . . . Parts Melted 38 | . . . . . 10 . 3 . 3 . . . . . 2 . . 1 . . . . . . 2 . . . 2 3 . . 12 . . . Heat Transferred 19985 | . . . . . 814 629 999 87 1200 . . . 100 50 100 . 600 1000 425 175 1025 . 625 675 175 700 398 200 2300 3310 250 450 3698 . . . Parts Sabotaged . | . . . . . . . . . . . . . . . . . . . . . . . . . . . . . . . . . . . . . Parts Stolen 5 | . . . . . . . . . . . . . . . . . . . . . 2 . . . 2 1 . . . . . . . . . . Parts Stripped . | . . . . . . . . . . . . . . . . . . . . . . . . . . . . . . . . . . . . . Power Chain Reactions 2 | . . . . . . . . . . . . . 1 1 . . . . . . . . . . . . . . . . . . . . . . Missiles Intercepted . | . . . . . . . . . . . . . . . . . . . . . . . . . . . . . . . . . . . . . Alert | -11 -10 -10 -9 -9 -9 -8 -8 -7 -7 -7 -7 -6 -6 -6 -6 -6 -6 -5 -5 -5 -5 -5 -4 -4 -4 -4 -4 -3 -3 -3 -2 -2 -2 -1 -1 -1 ------- Run | Scr Mat Min Mat Min Exi Min Mat Fac Low Low Dat Pro Fac Low Low Zio Dee Pro Fac Upp Upp Zhi Pro Fac Upp Upp War Pro Res Qua Res Tes Sec Acc Com Ac0 Peak Influence 1600 | . 251 120 537 192 . 103 375 140 . . . . 255 . . . . . 168 . . . . 204 . . . . 540 697 492 255 1600 1162 980 . Initial 1100 | . . 1 . 192 . . . 125 . . . . . . . . . . . . . . . . . . . . 12 240 340 186 69 1100 743 . Average 247 | . 76 18 257 44 . 22 86 76 . . . . 104 . . . . . 43 . . . . 81 . . . . 200 502 385 165 598 1018 760 . Maximum Alert Level 5 | . 1 . 2 . . . 1 . . . . . 1 . . . . . . . . . . 1 . . . . 2 2 2 1 5 4 4 . Low Security (%) 56 | 100 91 100 48 100 . 100 83 100 . . . . 81 . . . . . 100 . . . . 84 . . . . 55 . . 71 18 . . . Level 1 13 | . 8 . 21 . . . 16 . . . . . 18 . . . . . . . . . . 15 . . . . 14 13 62 28 16 . . . Level 2 18 | . . . 30 . . . . . . . . . . . . . . . . . . . . . . . . . 30 86 37 . 29 . 3 . Level 3 5 | . . . . . . . . . . . . . . . . . . . . . . . . . . . . . . . . . 19 89 26 . Level 4 6 | . . . . . . . . . . . . . . . . . . . . . . . . . . . . . . . . . 15 10 70 . Level 5 . | . . . . . . . . . . . . . . . . . . . . . . . . . . . . . . . . . . . . . High Security . | . . . . . . . . . . . . . . . . . . . . . . . . . . . . . . . . . . . . . Max Security . | . . . . . . . . . . . . . . . . . . . . . . . . . . . . . . . . . . . . . Squads Dispatched 51 | . 3 1 2 . . . . . . . . . 3 . . . . . 2 . . . . 4 . . . . 5 7 3 6 12 1 2 . Investigation 7 | . 1 1 1 . . . . . . . . . 1 . . . . . . . . . . 1 . . . . . 1 1 . . . . . Extermination 20 | . . . . . . . . . . . . . 2 . . . . . 2 . . . . 2 . . . . 3 4 . 2 4 1 . . Reinforcement 16 | . 2 . 1 . . . . . . . . . . . . . . . . . . . . 1 . . . . 1 1 2 1 6 . 1 . Assault 5 | . . . . . . . . . . . . . . . . . . . . . . . . . . . . . 1 1 . . 2 . 1 . Garrison 3 | . . . . . . . . . . . . . . . . . . . . . . . . . . . . . . . . 3 . . . . Intercept . | . . . . . . . . . . . . . . . . . . . . . . . . . . . . . . . . . . . . . Searches Triggered . | . . . . . . . . . . . . . . . . . . . . . . . . . . . . . . . . . . . . . Data Miner Redirects 4 | . . . . . . . . . . . . . 1 . . . . . . . . . . . . . . . 1 . . . 1 . 1 . Construction Impeded 1 | . . . . . . . . . . . . . . . . . . . . . . . . . . . . . 1 . . . . . . . Haulers Reinforced 1 | . . . . . . . . . . . . . . . . . . . . . . . . . . . . . . . 1 . . . . . Active Scanning Responses . | . . . . . . . . . . . . . . . . . . . . . . . . . . . . . . . . . . . . . Cargo Convoy Interrupts . | . . . . . . . . . . . . . . . . . . . . . . . . . . . . . . . . . . . . . Stealth | -11 -10 -10 -9 -9 -9 -8 -8 -7 -7 -7 -7 -6 -6 -6 -6 -6 -6 -5 -5 -5 -5 -5 -4 -4 -4 -4 -4 -3 -3 -3 -2 -2 -2 -1 -1 -1 --------- Run | Scr Mat Min Mat Min Exi Min Mat Fac Low Low Dat Pro Fac Low Low Zio Dee Pro Fac Upp Upp Zhi Pro Fac Upp Upp War Pro Res Qua Res Tes Sec Acc Com Ac0 Distress Signals 47 | . 2 . 6 . . . 1 . . . . . 1 . . . . . . . . . . . . . . . 2 4 1 1 . 2 27 . Communications Jammed 180 | . . . . . . . . . . . . . . . . . . . . . . . . 2 . . . . 135 7 . . 36 . . . Distress Signals 172 | . . . . . . . . . . . . . . . . . . . . . . . . . . . . . 135 7 . . 30 . . . Times Spotted 560 | . 18 6 47 . 54 10 19 2 11 . . 2 11 2 5 . 65 9 5 5 12 . 11 12 3 13 14 7 37 48 2 6 52 . 17 55 Peak Tracking Total 36 | . 3 3 7 . 9 4 5 1 4 . . 2 3 2 4 . 36 5 2 5 5 . 4 3 3 4 9 3 13 6 1 3 9 3 9 8 Tactical Retreats 45 | . 1 . 1 . 25 3 2 . 3 . . . . . . . 3 . . . 1 . . . . . . . 1 1 . . 2 . . 2 Traps | -11 -10 -10 -9 -9 -9 -8 -8 -7 -7 -7 -7 -6 -6 -6 -6 -6 -6 -5 -5 -5 -5 -5 -4 -4 -4 -4 -4 -3 -3 -3 -2 -2 -2 -1 -1 -1 ------- Run | Scr Mat Min Mat Min Exi Min Mat Fac Low Low Dat Pro Fac Low Low Zio Dee Pro Fac Upp Upp Zhi Pro Fac Upp Upp War Pro Res Qua Res Tes Sec Acc Com Ac0 Traps Triggered 6 | . . . 4 . . . . . . . . . . . . . . . . . . . . . . . . . . . . . 1 . 1 . Indirectly . | . . . . . . . . . . . . . . . . . . . . . . . . . . . . . . . . . . . . . Trap Hack Attempts . | . . . . . . . . . . . . . . . . . . . . . . . . . . . . . . . . . . . . . Triggered . | . . . . . . . . . . . . . . . . . . . . . . . . . . . . . . . . . . . . . Disarmed . | . . . . . . . . . . . . . . . . . . . . . . . . . . . . . . . . . . . . . Reprogrammed . | . . . . . . . . . . . . . . . . . . . . . . . . . . . . . . . . . . . . . Reused 1 | . . . . . 1 . . . . . . . . . . . . . . . . . . . . . . . . . . . . . . . Traps Extracted 5 | . . . . 5 . . . . . . . . . . . . . . . . . . . . . . . . . . . . . . . . Installed 5 | . . . . . 5 . . . . . . . . . . . . . . . . . . . . . . . . . . . . . . . Triggered 13 | . . . . . . . . . 3 2 . . . . . . . . . . . . . . . . 8 . . . . . . . . . Most Traps Carried 5 | . . . . 5 5 . . . . . . . . . . . . . . . . . . . . . . . . . . . . . . . Exploded 3 | . . . . . 3 . . . . . . . . . . . . . . . . . . . . . . . . . . . . . . . Machines | -11 -10 -10 -9 -9 -9 -8 -8 -7 -7 -7 -7 -6 -6 -6 -6 -6 -6 -5 -5 -5 -5 -5 -4 -4 -4 -4 -4 -3 -3 -3 -2 -2 -2 -1 -1 -1 ---------- Run | Scr Mat Min Mat Min Exi Min Mat Fac Low Low Dat Pro Fac Low Low Zio Dee Pro Fac Upp Upp Zhi Pro Fac Upp Upp War Pro Res Qua Res Tes Sec Acc Com Ac0 Machines Disabled 70 | . 1 . . . 9 . . . . . . . 7 . . 1 3 . 1 . . . . . . 1 1 . 2 9 . . 18 . 7 10 Max in Single Turn 3 | . 1 . . . 2 . . . . . . . 1 . . 1 1 . 1 . . . . . . 1 1 . 1 1 . . 3 . 1 1 Machines Sabotaged . | . . . . . . . . . . . . . . . . . . . . . . . . . . . . . . . . . . . . . Garrisons Compromised . | . . . . . . . . . . . . . . . . . . . . . . . . . . . . . . . . . . . . . Overloaded Fab Kills . | . . . . . . . . . . . . . . . . . . . . . . . . . . . . . . . . . . . . . Hacking | -11 -10 -10 -9 -9 -9 -8 -8 -7 -7 -7 -7 -6 -6 -6 -6 -6 -6 -5 -5 -5 -5 -5 -4 -4 -4 -4 -4 -3 -3 -3 -2 -2 -2 -1 -1 -1 --------- Run | Scr Mat Min Mat Min Exi Min Mat Fac Low Low Dat Pro Fac Low Low Zio Dee Pro Fac Upp Upp Zhi Pro Fac Upp Upp War Pro Res Qua Res Tes Sec Acc Com Ac0 Machines Accessed 91 | . 9 1 15 1 1 . 6 3 . 3 4 . 5 . . . . . 1 2 1 5 . 2 . . 8 . 1 6 1 5 6 2 1 2 Terminals 52 | . 7 . 10 . . . 5 2 . . . . 4 . . . . . 1 . . . . 1 . . . . 1 6 1 5 6 2 1 . Fabricators 1 | . . . . . . . . . . . . . . . . . . . . . . . . 1 . . . . . . . . . . . . Repair Stations 2 | . . . 2 . . . . . . . . . . . . . . . . . . . . . . . . . . . . . . . . . Recycling Units 5 | . 2 . 2 . . . . 1 . . . . . . . . . . . . . . . . . . . . . . . . . . . . Scanalyzers 3 | . . . 1 . . . 1 . . . . . 1 . . . . . . . . . . . . . . . . . . . . . . . Garrison Access . | . . . . . . . . . . . . . . . . . . . . . . . . . . . . . . . . . . . . . Total Hacks 297 | . 26 1 47 1 1 . 26 10 . 5 30 . 14 . . . . . 3 2 1 18 . 20 . . 24 . 2 14 3 10 14 4 1 20 Successful 208 | . 12 1 27 1 1 . 15 4 . 5 30 . 7 . . . . . 2 2 1 18 . 12 . . 24 . . 7 1 7 8 2 1 20 Failed 87 | . 14 . 19 . . . 10 6 . . . . 7 . . . . . 1 . . . . 8 . . . . 2 7 2 3 6 2 . . Catastrophic 10 | . 1 . 2 . . . . . . . . . 2 . . . . . . . . . . 1 . . . . . 1 . 1 2 . . . Database Lockouts 2 | . . . 1 . . . 1 . . . . . . . . . . . . . . . . . . . . . . . . . . . . . Manual 89 | . 20 . 17 . 1 . 13 7 . . . . 4 . . 1 . . 3 . . . . 14 . . 1 . . . . 4 3 1 . . Terminals 157 | . 20 . 30 . . . 21 8 . . . . 11 . . . . . 3 . . . . 16 . . . . 2 14 3 10 14 4 1 . Fabricators 4 | . . . . . . . . . . . . . . . . . . . . . . . . 4 . . . . . . . . . . . . Repair Stations 9 | . . . 9 . . . . . . . . . . . . . . . . . . . . . . . . . . . . . . . . . Recycling Units 13 | . 6 . 5 . . . . 2 . . . . . . . . . . . . . . . . . . . . . . . . . . . . Scanalyzers 11 | . . . 3 . . . 5 . . . . . 3 . . . . . . . . . . . . . . . . . . . . . . . Garrison Access . | . . . . . . . . . . . . . . . . . . . . . . . . . . . . . . . . . . . . . Terminal Hacks 162 | . 5 1 12 1 1 . 9 2 . 5 30 . 3 . . . . . 1 2 1 18 . 7 . . 24 . . 7 1 4 6 1 1 20 Record 57 | . . . . . . . . . . 3 11 . . . . . . . . . . 6 . . . . 17 . . 3 . 1 . . . 16 Part Schematic 17 | . . . . . . . 1 . . . 12 . . . . . . . . . . 4 . . . . . . . . . . . . . . Robot Schematic 4 | . . . . . . . . . . . 4 . . . . . . . . . . . . . . . . . . . . . . . . . Robot Analysis 16 | . 3 . 3 . . . 1 1 . . . . . . . . . . . . . 4 . 3 . . . . . . . . 1 . . . Prototype ID Bank 17 | . . . 1 . . . 1 . . . 3 . . . . . . . . . . 4 . 1 . . 6 . . . . 1 . . . . Open Door 12 | . . 1 . 1 . . . . . 2 . . . . . . . . . 2 1 . . . . . 1 . . 1 . . 2 . 1 . Level Access Points 2 | . . . . . . . 1 . . . . . . . . . . . . . . . . . . . . . . . . . 1 . . . Branch Access Points 7 | . . . 1 . . . . 1 . . . . 1 . . . . . 1 . . . . 1 . . . . . . 1 . . 1 . . Fabricator Index 1 | . . . . . . . . . . . . . 1 . . . . . . . . . . . . . . . . . . . . . . . Alert Level 2 | . . . . . . . . . . . . . . . . . . . . . . . . . . . . . . . . 1 1 . . . Unreport Threat 2 | . . . . . . . . . . . . . . . . . . . . . . . . . . . . . . 2 . . . . . . Locate Traps 7 | . 2 . 3 . . . . . . . . . . . . . . . . . . . . 1 . . . . . 1 . . . . . . Recall Reinforcements 3 | . . . 1 . . . . . . . . . . . . . . . . . . . . . . . . . . . . 1 1 . . . Hauler Manifests 3 | . . . 1 . . . 1 . . . . . 1 . . . . . . . . . . . . . . . . . . . . . . . Registered Components 3 | . . . 1 . . . 1 . . . . . . . . . . . . . . . . 1 . . . . . . . . . . . . Zone Layout 4 | . . . 1 . . . 3 . . . . . . . . . . . . . . . . . . . . . . . . . . . . . EX-Prototype ID Bank 1 | . . . . . 1 . . . . . . . . . . . . . . . . . . . . . . . . . . . . . . . Gate Test 138-B 1 | . . . . . . . . . . . . . . . . . . . . . . . . . . . . . . . . . . . . 1 Gate Test 138-C 1 | . . . . . . . . . . . . . . . . . . . . . . . . . . . . . . . . . . . . 1 Gate Test 138-END 1 | . . . . . . . . . . . . . . . . . . . . . . . . . . . . . . . . . . . . 1 Fabricator Hacks 3 | . . . . . . . . . . . . . . . . . . . . . . . . 2 . . . . . . . . . . . 1 Network Status 1 | . . . . . . . . . . . . . . . . . . . . . . . . 1 . . . . . . . . . . . . Load Schematic 1 | . . . . . . . . . . . . . . . . . . . . . . . . 1 . . . . . . . . . . . . Repair Station Hacks 6 | . . . 6 . . . . . . . . . . . . . . . . . . . . . . . . . . . . . . . . . Scan Component 3 | . . . 3 . . . . . . . . . . . . . . . . . . . . . . . . . . . . . . . . . Repair 3 | . . . 3 . . . . . . . . . . . . . . . . . . . . . . . . . . . . . . . . . Recycling Unit Hacks 4 | . 2 . 2 . . . . . . . . . . . . . . . . . . . . . . . . . . . . . . . . . Retrieve Components 4 | . 2 . 2 . . . . . . . . . . . . . . . . . . . . . . . . . . . . . . . . . Scanalyzer 9 | . . . 3 . . . 3 . . . . . 3 . . . . . . . . . . . . . . . . . . . . . . . Insert Component 6 | . . . 3 . . . 2 . . . . . 1 . . . . . . . . . . . . . . . . . . . . . . . Analyze 3 | . . . . . . . 1 . . . . . 2 . . . . . . . . . . . . . . . . . . . . . . . Garrison Access Hacks . | . . . . . . . . . . . . . . . . . . . . . . . . . . . . . . . . . . . . . Unauthorized Hacks 25 | . 5 . 4 . . . 3 2 . . . . 1 . . . . . 1 . . . . 3 . . . . . . . 3 2 1 . . Terminals 20 | . 2 . 3 . . . 3 2 . . . . 1 . . . . . 1 . . . . 2 . . . . . . . 3 2 1 . . Assimilate 2 | . . . . . . . . . . . . . . . . . . . 1 . . . . . . . . . . . . 1 . . . . Botnet 12 | . 2 . 2 . . . 2 1 . . . . 1 . . . . . . . . . . 1 . . . . . . . 1 1 1 . . Operators 6 | . . . 1 . . . 1 1 . . . . . . . . . . . . . . . 1 . . . . . . . 1 1 . . . Fabricators 1 | . . . . . . . . . . . . . . . . . . . . . . . . 1 . . . . . . . . . . . . Recompile 1 | . . . . . . . . . . . . . . . . . . . . . . . . 1 . . . . . . . . . . . . Repair Stations . | . . . . . . . . . . . . . . . . . . . . . . . . . . . . . . . . . . . . . Recycling Units 4 | . 3 . 1 . . . . . . . . . . . . . . . . . . . . . . . . . . . . . . . . . Reject 1 | . 1 . . . . . . . . . . . . . . . . . . . . . . . . . . . . . . . . . . . Mask 3 | . 2 . 1 . . . . . . . . . . . . . . . . . . . . . . . . . . . . . . . . . Scanalyzers . | . . . . . . . . . . . . . . . . . . . . . . . . . . . . . . . . . . . . . Garrison Access . | . . . . . . . . . . . . . . . . . . . . . . . . . . . . . . . . . . . . . Data Cores Recovered 1 | . 1 . . . . . . . . . . . . . . . . . . . . . . . . . . . . . . . . . . . Used 1 | . 1 . . . . . . . . . . . . . . . . . . . . . . . . . . . . . . . . . . . Hacking Detections 61 | . 9 . 14 . . . 6 3 . . . . 5 . . . . . 1 . . . . 2 . . . . 1 6 1 5 5 2 1 . Full Trace Events 6 | . 1 . 2 . . . . . . . . . 1 . . . . . . . . . . . . . . . . 1 1 . . . . . Feedback Events . | . . . . . . . . . . . . . . . . . . . . . . . . . . . . . . . . . . . . . Feedback Blocked . | . . . . . . . . . . . . . . . . . . . . . . . . . . . . . . . . . . . . . Robot Schematics Acquired 7 | . . . . . . . . . . . 4 . . . . 2 . . . . . . . . . . . . . 1 . . . . . . Robots Built . | . . . . . . . . . . . . . . . . . . . . . . . . . . . . . . . . . . . . . Authchips . | . . . . . . . . . . . . . . . . . . . . . . . . . . . . . . . . . . . . . Time . | . . . . . . . . . . . . . . . . . . . . . . . . . . . . . . . . . . . . . Total Robot Build Rating . | . . . . . . . . . . . . . . . . . . . . . . . . . . . . . . . . . . . . . Part Schematics Acquired 45 | . . . . . . . 2 . . . 12 . 1 . . 14 . . . . . 4 . . . . . . . 1 . . 11 . . . Parts Built . | . . . . . . . . . . . . . . . . . . . . . . . . . . . . . . . . . . . . . Authchips . | . . . . . . . . . . . . . . . . . . . . . . . . . . . . . . . . . . . . . Time . | . . . . . . . . . . . . . . . . . . . . . . . . . . . . . . . . . . . . . Total Part Build Rating . | . . . . . . . . . . . . . . . . . . . . . . . . . . . . . . . . . . . . . Parts Repaired 3 | . . . 3 . . . . . . . . . . . . . . . . . . . . . . . . . . . . . . . . . Time 86 | . . . 86 . . . . . . . . . . . . . . . . . . . . . . . . . . . . . . . . . Parts Recycled . | . . . . . . . . . . . . . . . . . . . . . . . . . . . . . . . . . . . . . Recycled Matter . | . . . . . . . . . . . . . . . . . . . . . . . . . . . . . . . . . . . . . Retrieved Matter . | . . . . . . . . . . . . . . . . . . . . . . . . . . . . . . . . . . . . . Retrieved Components 21 | . 9 . 12 . . . . . . . . . . . . . . . . . . . . . . . . . . . . . . . . . Parts Scanalyzed 2 | . . . . . . . 1 . . . . . 1 . . . . . . . . . . . . . . . . . . . . . . . Part Schematics Acquired 2 | . . . . . . . 1 . . . . . 1 . . . . . . . . . . . . . . . . . . . . . . . Parts Damaged 1 | . . . . . . . . . . . . . 1 . . . . . . . . . . . . . . . . . . . . . . . Bothacking | -11 -10 -10 -9 -9 -9 -8 -8 -7 -7 -7 -7 -6 -6 -6 -6 -6 -6 -5 -5 -5 -5 -5 -4 -4 -4 -4 -4 -3 -3 -3 -2 -2 -2 -1 -1 -1 ------------ Run | Scr Mat Min Mat Min Exi Min Mat Fac Low Low Dat Pro Fac Low Low Zio Dee Pro Fac Upp Upp Zhi Pro Fac Upp Upp War Pro Res Qua Res Tes Sec Acc Com Ac0 Used RIF Installer . | . . . . . . . . . . . . . . . . . . . . . . . . . . . . . . . . . . . . . Robots Hacked 5 | . . . . . 4 . . . . . . . . . . . . . . . . . . . . . . 1 . . . . . . . . Non-combat 3 | . . . . . 3 . . . . . . . . . . . . . . . . . . . . . . . . . . . . . . . Combat 2 | . . . . . 1 . . . . . . . . . . . . . . . . . . . . . . 1 . . . . . . . . Robot Hacks Applied 5 | . . . . . 4 . . . . . . . . . . . . . . . . . . . . . . 1 . . . . . . . . parse_system 5 | . . . . . 4 . . . . . . . . . . . . . . . . . . . . . . 1 . . . . . . . . Manual 1 | . . . . . . . . . . . . . . . . . . . . . . . . . . . . 1 . . . . . . . . Relay Couplers Released . | . . . . . . . . . . . . . . . . . . . . . . . . . . . . . . . . . . . . . Fabnet Peak Effective % . | . . . . . . . . . . . . . . . . . . . . . . . . . . . . . . . . . . . . . Robots Rewired 4 | . . . . . . . . . . . . . . . . . . . . . . . . . . . 4 . . . . . . . . . Allies Hacked 1 | . . . . . . . . . . . . . . . . . . . . . . . . . . . . . 1 . . . . . . . Hacks Repelled . | . . . . . . . . . . . . . . . . . . . . . . . . . . . . . . . . . . . . . Allies | -11 -10 -10 -9 -9 -9 -8 -8 -7 -7 -7 -7 -6 -6 -6 -6 -6 -6 -5 -5 -5 -5 -5 -4 -4 -4 -4 -4 -3 -3 -3 -2 -2 -2 -1 -1 -1 -------- Run | Scr Mat Min Mat Min Exi Min Mat Fac Low Low Dat Pro Fac Low Low Zio Dee Pro Fac Upp Upp Zhi Pro Fac Upp Upp War Pro Res Qua Res Tes Sec Acc Com Ac0 Total Allies 89 | . . . . . . . . . . . . 1 . . . 4 . . . . . . . . . . 4 1 . . . 1 . 30 48 . Largest Group 22 | . . . . . . . . . . . . 1 . . . 4 4 . . . . . . . . . 4 4 2 . . 1 . 22 6 . Highest-Rated Group 311 | . . . . . . . . . . . . 96 . . . 87 87 . . . . . . . . . 230 230 99 . . 26 . 311 84 . Highest-Rated Ally 116 | . . . . . . . . . . . . 96 . . . 28 28 . . . . . . . . . 68 116 50 . . 26 . 15 15 . Total Orders 171 | . . . . . . . . . 10 1 5 3 7 14 1 . 111 . 1 . . . . 1 . . 4 . 3 3 2 2 3 . . . STAY 24 | . . . . . . . . . . . . . . 4 . . 18 . . . . . . . . . 2 . . . . . . . . . FOLLOW 28 | . . . . . . . . . . . . 1 . 4 . . 21 . . . . . . . . . 2 . . . . . . . . . EXPLORE 4 | . . . . . . . . . . . . . 3 . . . . . 1 . . . . . . . . . . . . . . . . . RETURN 115 | . . . . . . . . . 10 1 5 2 4 6 1 . 72 . . . . . . 1 . . . . 3 3 2 2 3 . . . Ally Attacks 390 | . . . . . . 3 . . . 22 . 9 4 . . . 199 . . . . . . . . . 10 25 19 . . . . 86 13 . Total Damage 8501 | . . . . . . 82 . . . 295 . 351 81 . . . 2955 . . . . . . . . . 533 1307 702 . . . . 1914 281 . Kills 57 | . . . . . . . . . . 3 . 3 1 . . . 31 . . . . . . . . . 2 6 2 . . . . 8 1 . Allies Corrupted 3 | . . . . . . . . . . . . . . . . . 1 . . . . . . . . . . . 1 . . . . 1 . . Allies Melted . | . . . . . . . . . . . . . . . . . . . . . . . . . . . . . . . . . . . . . Turrets Deployed 1 | . . . . . . 1 . . . . . . . . . . . . . . . . . . . . . . . . . . . . . . Intel | -11 -10 -10 -9 -9 -9 -8 -8 -7 -7 -7 -7 -6 -6 -6 -6 -6 -6 -5 -5 -5 -5 -5 -4 -4 -4 -4 -4 -3 -3 -3 -2 -2 -2 -1 -1 -1 ------- Run | Scr Mat Min Mat Min Exi Min Mat Fac Low Low Dat Pro Fac Low Low Zio Dee Pro Fac Upp Upp Zhi Pro Fac Upp Upp War Pro Res Qua Res Tes Sec Acc Com Ac0 Robot Analysis Total 16 | . 3 . 3 . . . 1 1 . . . . . . . . . . . . . 4 . 3 . . . . . . . . 1 . . . Derelict Logs Recovered 21 | . . 1 . 3 . . . . 2 3 . 1 . 1 1 . . 2 . 1 2 . 2 . . 2 . . . . . . . . . . Drone Launches 300 | . . . . . . . . . 40 . 33 . 35 33 . . 118 . 1 . . . . 3 . . . . 8 8 6 6 9 . . . Drone Recoveries 271 | . . . . . . . . . 10 28 5 28 7 33 28 . 91 . 1 . . . . 3 . . . . 8 8 6 6 9 . . . Exploration | -11 -10 -10 -9 -9 -9 -8 -8 -7 -7 -7 -7 -6 -6 -6 -6 -6 -6 -5 -5 -5 -5 -5 -4 -4 -4 -4 -4 -3 -3 -3 -2 -2 -2 -1 -1 -1 ------------- Run | Scr Mat Min Mat Min Exi Min Mat Fac Low Low Dat Pro Fac Low Low Zio Dee Pro Fac Upp Upp Zhi Pro Fac Upp Upp War Pro Res Qua Res Tes Sec Acc Com Ac0 Turns Passed 56575 | 27 1423 828 2563 1723 4005 911 821 706 1248 1198 224 1714 1083 1552 1625 1311 5041 2636 799 1847 1270 692 1828 948 1859 2652 1734 2199 1264 1963 754 1048 2405 297 1485 892 Spaces Moved 27025 | 34 648 352 1338 622 1507 501 463 421 780 823 91 625 481 766 912 799 2065 833 374 741 601 165 647 372 844 916 740 965 368 566 289 359 932 360 2034 1691 Core 58 | 34 24 . . . . . . . . . . . . . . . . . . . . . . . . . . . . . . . . . . . Treads 3167 | . 515 61 368 622 1507 94 . . . . . . . . . . . . . . . . . . . . . . . . . . . . . . Legs 12484 | . . . . . . . . . . . . . . . . . 733 833 374 741 601 165 647 372 844 916 740 965 368 55 . . 69 346 2024 1691 Wheels 11285 | . 109 291 970 . . 407 463 421 780 823 91 625 481 766 912 799 1332 . . . . . . . . . . . . 511 289 359 856 . . . Hover . | . . . . . . . . . . . . . . . . . . . . . . . . . . . . . . . . . . . . . Flight . | . . . . . . . . . . . . . . . . . . . . . . . . . . . . . . . . . . . . . Fastest Speed 30 | 50 50 115 115 240 160 120 115 130 100 130 130 130 145 160 145 160 145 210 180 180 180 180 180 210 210 210 210 180 210 170 190 150 30 30 30 30 Average Speed 161 | 50 189 135 147 240 236 154 132 130 132 130 135 217 169 165 159 160 195 210 185 180 180 189 180 210 210 210 210 209 216 186 190 189 172 30 34 30 Slowest Speed 400 | 50 240 232 240 240 400 240 140 130 160 130 160 220 220 190 160 160 290 210 210 180 180 210 180 210 210 210 210 210 240 240 190 190 290 30 90 30 Overloaded Moves . | . . . . . . . . . . . . . . . . . . . . . . . . . . . . . . . . . . . . . Propulsion Burnouts . | . . . . . . . . . . . . . . . . . . . . . . . . . . . . . . . . . . . . . Robots Hopped . | . . . . . . . . . . . . . . . . . . . . . . . . . . . . . . . . . . . . . Cave-ins Triggered . | . . . . . . . . . . . . . . . . . . . . . . . . . . . . . . . . . . . . . Teleports 4 | . . . . . . . . . . . . . . . . . . . . . . . . . . . . . . . . . 2 . 1 1 Spacefolds 12 | . . . . . . . . . . . . . . . . . . . . . . . . . . . . . . . . . 3 5 4 . Exploration Rate (%) 68 | 2 96 80 98 96 92 97 49 15 82 93 68 88 53 90 87 84 90 92 15 89 92 61 72 15 97 83 94 96 18 66 8 49 64 10 78 86 Regions Visited 36 Branch Regions 26 Pre-discovered Areas 9 | . . . . 2 . . . . . . 1 . . . . 2 . . . . 1 3 . . . . . . . . . . . . . . Known Exits Taken 32 | . . . 1 1 1 1 1 1 1 1 1 1 1 1 1 1 1 1 1 1 1 1 1 1 1 1 1 1 1 1 1 1 1 1 . . Unknown Exits Taken 4 | 1 1 1 . . . . . . . . . . . . . . . . . . . . . . . . . . . . . . . . 1 . Scrap Searched 42 | . . 1 . 4 . 1 . . 1 2 . 3 . 3 3 1 . 4 . 2 2 . 4 . 5 3 . 3 . . . . . . . . Spaces Dug 405 | . . 1 4 . . . 5 8 18 3 . 5 9 3 12 2 . 2 12 6 2 . 3 13 . 5 31 14 12 12 8 13 31 25 107 39 Terrain Destroyed 2174 | . . 1 4 . 39 24 12 8 95 3 . 5 15 5 128 2 10 14 19 12 24 . 21 19 5 111 40 18 34 56 18 22 134 25 311 940 Melee 22 | . . 1 4 . . . . 8 1 3 . . . 3 . 2 . . . . . . . . . . . . . . . . . . . . Projectile 1799 | . . . . . 3 24 12 . . . . 5 13 2 13 . 10 14 19 12 24 . 12 19 5 14 40 18 34 56 18 22 134 25 311 940 AOE 353 | . . . . . 36 . . . 94 . . . 2 . 115 . . . . . . . 9 . . 97 . . . . . . . . . . Terrain Rammed . | . . . . . . . . . . . . . . . . . . . . . . . . . . . . . . . . . . . . . Walls Destroyed . | . . . . . . . . . . . . . . . . . . . . . . . . . . . . . . . . . . . . . Machines Disabled . | . . . . . . . . . . . . . . . . . . . . . . . . . . . . . . . . . . . . . Actions | -11 -10 -10 -9 -9 -9 -8 -8 -7 -7 -7 -7 -6 -6 -6 -6 -6 -6 -5 -5 -5 -5 -5 -4 -4 -4 -4 -4 -3 -3 -3 -2 -2 -2 -1 -1 -1 --------- Run | Scr Mat Min Mat Min Exi Min Mat Fac Low Low Dat Pro Fac Low Low Zio Dee Pro Fac Upp Upp Zhi Pro Fac Upp Upp War Pro Res Qua Res Tes Sec Acc Com Ac0 Total 38013 | 42 747 684 1739 851 1812 596 591 564 937 946 195 967 672 1014 1048 821 2953 1671 443 1235 722 527 1274 488 920 1581 857 1118 719 1302 471 687 1512 535 2759 2013 Wait 8009 | . 21 289 183 209 101 28 55 109 73 99 91 303 97 191 84 4 639 786 23 471 83 328 581 55 52 587 20 128 227 576 138 232 324 154 593 75 Move 26970 | 33 647 351 1337 621 1506 500 462 420 779 822 90 624 480 765 911 798 2064 832 373 740 600 164 646 372 843 915 739 964 367 565 288 358 927 350 2027 1690 Hop . | . . . . . . . . . . . . . . . . . . . . . . . . . . . . . . . . . . . . . Pick Up 390 | 6 11 10 28 7 34 12 3 7 17 4 6 12 15 3 4 4 42 5 6 1 2 3 1 7 5 9 14 1 9 16 10 16 30 1 20 9 Fast Attach 163 | 2 2 . 5 . 5 6 2 1 2 . . 1 4 1 4 . 13 2 2 1 1 4 3 2 2 2 3 1 7 5 . 4 20 13 13 30 Attach 129 | 1 2 . 6 . 14 7 2 2 . 6 1 6 4 6 6 2 20 2 1 . . 4 . . 1 2 . . 5 3 2 2 12 1 4 5 Detach 69 | . . . . . 3 . . . . . . . 7 6 . . 15 . . 1 . 5 1 . 1 6 1 . 3 5 . 4 10 1 . . Swap 323 | . 12 11 37 2 13 3 22 5 6 7 1 11 11 15 10 1 5 . 1 3 . 2 5 13 1 10 5 4 19 21 9 12 34 1 10 1 Drop 522 | . 1 10 28 8 32 16 6 8 9 5 6 4 13 3 8 5 60 14 9 6 2 7 15 8 8 15 19 2 19 23 9 29 38 12 26 39 Fire 1321 | . 51 10 107 1 95 19 39 3 46 . . 6 41 16 21 1 95 30 28 12 34 . 22 30 7 26 35 18 57 87 15 25 117 2 61 164 Melee 75 | . . 2 7 . 4 5 . 9 5 3 . . . 8 . 6 . . . . . 10 . . . 9 . . 1 1 . 5 . . . . Ram 1 | . . . 1 . . . . . . . . . . . . . . . . . . . . . . . . . . . . . . . . . Kick 6 | . . . . . . . . . . . . . . . . . . . . . . . . 1 . . . . 5 . . . . . . . Crush 4 | . . 1 . 3 . . . . . . . . . . . . . . . . . . . . . . . . . . . . . . . . Escape Stasis 5 | . . . . . . . . . . . . . . . . . . . . . . . . . . . . . . . . . . . 5 . Rewire 21 | . . . . . . . . . . . . . . . . . . . . . . . . . . . 21 . . . . . . . . . Trap 5 | . . . . . 5 . . . . . . . . . . . . . . . . . . . . . . . . . . . . . . . Miscellaneous . | . . . . . . . . . . . . . . . . . . . . . . . . . . . . . . . . . . . . . Route ------- -11/Scrapyard -10/Materials (discovered 4 exits: *Mat x3 / *Min) -10/Mines -9/Materials (discovered 5 exits: *Mat x3 / *Min x2) -9/Mines (discovered 3 exits: *Mat x2 / *Exi) -9/Exiles -8/Mines (discovered 2 exits: *Mat x2) -8/Materials (discovered 4 exits: *Fac x3 / *Sto) -7/Factory (discovered 3 exits: *Fac / *Low x2) -7/Lower Caves -7/Lower Caves (discovered 2 exits: *Fac / *Dat) -7/Data Miner -6/Proximity Caves -6/Factory (discovered 5 exits: *Fac / *Low x2 / *Ext x2) -6/Lower Caves -6/Lower Caves (discovered 2 exits: *Fac / *Zio) -6/Zion (discovered 2 exits: *Dee / *Pro) -6/Deep Caves -5/Proximity Caves -5/Factory (discovered 3 exits: Fac / *Upp x2) -5/Upper Caves -5/Upper Caves (discovered 2 exits: *Fac / *Zhi) -5/Zhirov -4/Proximity Caves -4/Factory (discovered 3 exits: Res / *Upp x2) -4/Upper Caves -4/Upper Caves (discovered 2 exits: *Res / *War) -4/Warlord -3/Proximity Caves -3/Research (discovered 4 exits: Res / Arm / *Qua x2) -3/Quarantine -2/Research (discovered 3 exits: Acc / *Tes x2) -2/Testing -2/Section 7 -1/Access -1/Command (discovered 3 exits: [*Sur x2] / *Ac0) -1/Access_0 To Fleet Rendezvous History --------- Turn | Location | Event 16 | -11/Scrapyard | Discovered new exit (range 16) 28 | -11/Scrapyard | Entered Materials 248 | -10/Materials | Discovered new exit (range 15) 312 | -10/Materials | Build established: Mutant 481 | -10/Materials | Discovered new exit (range 13) 809 | -10/Materials | Discovered new exit (range 7) 1025 | -10/Materials | Discovered new exit (range 13) 1451 | -10/Materials | Entered Mines 1518 | -10/Mines | Met a Derelict shopkeep closing up shop 1606 | -10/Mines | Learned Materials stockpile data 1695 | -10/Mines | Found a damaged Exp. Sensor Array with a note attached 1698 | -10/Mines | Found Prototype Device 1753 | -10/Mines | Assembled infested the area 2188 | -10/Mines | A weapon hastily lodged in a ceiling crevice suddenly fell to the ground 2275 | -10/Mines | Discovered new exit (range 3) 2279 | -10/Mines | Entered Materials 2279 | -9/Materials | Evolved 2 slots: Utility x2 2959 | -9/Materials | Destroyed 7 combat bots 2960 | -9/Materials | Lost 4 parts (1n2u1w) 3100 | -9/Materials | Discovered new exit (range 9) 3300 | -9/Materials | Central database locked down 3395 | -9/Materials | Identified exit to Mines 3447 | -9/Materials | Repaired Imp. Sensor Array 3480 | -9/Materials | Repaired Imp. Ion Engine 3874 | -9/Materials | Discovered new exit (range 16) 3890 | -9/Materials | Identified exit to Materials 4018 | -9/Materials | Identified Exp. Sensor Array 4276 | -9/Materials | Repaired Autogun 4398 | -9/Materials | Discovered exit to Materials (range 16) 4842 | -9/Materials | Entered Mines 4900 | -9/Mines | Deemed a non-threat by the Exiles lab entrance 4900 | -9/Mines | Discovered new exit (range 5) 4918 | -9/Mines | Met a Derelict bent on vengeance 4961 | -9/Mines | Met a Derelict who couldn't figure out how to use a Trap Extractor 5220 | -9/Mines | Learned location of Zion (-6) 5544 | -9/Mines | Discovered exit to Materials (range 11) 5660 | -9/Mines | Discovered exit to Materials (range 10) 5735 | -9/Mines | Received a Rocket Launcher from a helpful Derelict 6563 | -9/Mines | Identified exit to Exiles 6565 | -9/Mines | Entered Exiles 6626 | -9/Exiles | Met 8R-AWN 6679 | -9/Exiles | Met EX-HEX 6755 | -9/Exiles | Met EX-BIN 6788 | -9/Exiles | Aligned with FarCom system 6791 | -9/Exiles | Given EX-Vault access code 6854 | -9/Exiles | Opened EX-Vault 6912 | -9/Exiles | Warned to stay clear of 0b10 Research branches 6972 | -9/Exiles | Met EX-DEC 7248 | -9/Exiles | Discovered new exit (range 12) 7270 | -9/Exiles | Identified exit to Mines 7448 | -9/Exiles | Found Army-in-a-Box 7454 | -9/Exiles | Found AWS/Gauss 7460 | -9/Exiles | Found Supersonic Drone Bay 8478 | -9/Exiles | Attacked by the Exiles 8635 | -9/Exiles | Core integrity fell below 50% 8725 | -9/Exiles | Destroyed 8R-AWN 9298 | -9/Exiles | Destroyed EX-DEC 9313 | -9/Exiles | Destroyed EX-BIN 9357 | -9/Exiles | Found System Purifier 9417 | -9/Exiles | Destroyed EX-HEX 9530 | -9/Exiles | Found Broken Exp. Core Analyzer 9552 | -9/Exiles | Found Deploy-a-Sentry 10570 | -9/Exiles | Stole four prototypes: Supersonic Drone Bay, Army-in-a-Box, AWS/Gauss, Deploy-a-Sentry 10570 | -9/Exiles | Entered Mines 10628 | -8/Mines | CL-ANK came to Exiles' defense 10631 | -8/Mines | DAS Turret deployed 10652 | -8/Mines | Destroyed CL-ANK 10659 | -8/Mines | Found Prototype Impact Weapon 10750 | -8/Mines | Discovered exit to Materials (range 7) 10968 | -8/Mines | Build established: Scavenger-Mutant 11161 | -8/Mines | Identified CL-ANK's Mallet 11449 | -8/Mines | Discovered exit to Materials (range 3) 11481 | -8/Mines | Entered Materials 11481 | -8/Materials | Evolved 2 slots: Utility x2 11482 | -8/Materials | Identified exit to Storage 11792 | -8/Materials | Build established: Scavenger-Skirmisher 12049 | -8/Materials | Identified exit to Factory 12185 | -8/Materials | Central database locked down 12302 | -8/Materials | Entered Factory 12302 | -7/Factory | Evolved 2 slots: Utility x2 12642 | -7/Factory | Identified exit to Lower Caves 12951 | -7/Factory | Build established: Scavenger-Assassin 13007 | -7/Factory | Discovered new exit (range 9) 13008 | -7/Factory | Entered Lower Caves 13014 | -7/Lower Caves | Spotted B-75 Beast 13294 | -7/Lower Caves | Attracted the attention of an 0b10 checkpoint 13346 | -7/Lower Caves | Learned Factory terminal intel 13469 | -7/Lower Caves | Build established: Scavenger-Mutant 13569 | -7/Lower Caves | Identified exit to Lower Caves 13838 | -7/Lower Caves | Encountered a Warlord checkpoint 14256 | -7/Lower Caves | Entered another Lower Caves area 14256 | -7/Lower Caves | Accompanied by 30 allies 14257 | -7/Lower Caves | Encountered a Warlord checkpoint 14286 | -7/Lower Caves | Discovered new exit (range 26) 14330 | -7/Lower Caves | Learned Factory terminal intel 14428 | -7/Lower Caves | Identified exit to Factory 14444 | -7/Lower Caves | Learned Factory trap positions 14614 | -7/Lower Caves | Build established: Scavenger-Skirmisher 14990 | -7/Lower Caves | Learned Factory stockpile data 15253 | -7/Lower Caves | Discovered new exit (range 7) 15261 | -7/Lower Caves | Identified exit to Data Miner 15328 | -7/Lower Caves | Learned 4 Factory zone layouts 15454 | -7/Lower Caves | Entered Data Miner 15454 | -7/Data Miner | Discovered new exit (range 6) 15479 | -7/Data Miner | Met Data Miner 15503 | -7/Data Miner | Learned location of Section 7 (-2) 15503 | -7/Data Miner | Acquired the access code to Warlord's prototype stash 15523 | -7/Data Miner | Received God Mode back door access code from Data Miner 15551 | -7/Data Miner | Identified exit to Proximity Caves 15678 | -7/Data Miner | Entered Proximity Caves 15678 | -6/Proximity Caves | Accompanied by 28 allies 15928 | -6/Proximity Caves | Learned Factory stockpile data 16047 | -6/Proximity Caves | Build established: Hauler-Assassin 16208 | -6/Proximity Caves | Escorted by Enhanced Grunt 16470 | -6/Proximity Caves | Build established: Hauler-Mutant 16617 | -6/Proximity Caves | Found Prototype Device 16619 | -6/Proximity Caves | Identified Exp. Thermal Shield 16909 | -6/Proximity Caves | Build established: Hauler-Skirmisher 17361 | -6/Proximity Caves | Discovered exit to Factory (range 8) 17392 | -6/Proximity Caves | Entered Factory 17392 | -6/Factory | Evolved 2 slots: Power x1, Utility x1 17394 | -6/Factory | Loaded intel: 99 trap records 17396 | -6/Factory | Loaded intel: 28 terminal locations 17409 | -6/Factory | Discovered new exit (range 149) 17420 | -6/Factory | Discovered new exit (range 162) 17420 | -6/Factory | Discovered new exit (range 170) 17566 | -6/Factory | Build established: Hauler-Mutant 17866 | -6/Factory | Incoming investigation squad redirected 18049 | -6/Factory | Identified exit to Lower Caves 18049 | -6/Factory | Identified exit to Extension 18422 | -6/Factory | Build established: Scavenger-Mutant 18475 | -6/Factory | Entered Lower Caves 18475 | -6/Lower Caves | Accompanied by 28 allies 18514 | -6/Lower Caves | Identified exit to Lower Caves 19015 | -6/Lower Caves | Build established: Scavenger-Skirmisher 19894 | -6/Lower Caves | Build established: Scavenger-Mutant 20027 | -6/Lower Caves | Entered another Lower Caves area 20027 | -6/Lower Caves | Accompanied by 28 allies 20065 | -6/Lower Caves | Discovered new exit (range 9) 20075 | -6/Lower Caves | Identified exit to Factory 20683 | -6/Lower Caves | Encountered a Warlord checkpoint 20861 | -6/Lower Caves | Learned 12 Factory zone layouts 21578 | -6/Lower Caves | Spotted B-75 Beast 21583 | -6/Lower Caves | Discovered new exit (range 18) 21585 | -6/Lower Caves | Build established: Scavenger-Skirmisher 21612 | -6/Lower Caves | Identified exit to Zion 21652 | -6/Lower Caves | Entered Zion 21767 | -6/Zion | Found CR-A16's Pointy Stick 21770 | -6/Zion | Discovered new exit (range 8) 21781 | -6/Zion | Identified exit to Proximity Caves 21896 | -6/Zion | Gained Derelict followers 22050 | -6/Zion | Build established: Scavenger-Mutant 22491 | -6/Zion | Learned location of Armory (-3) 22505 | -6/Zion | Received a visual enhancement algorithm 22947 | -6/Zion | Discovered new exit (range 4) 22950 | -6/Zion | Saw the warning signs outside the Deep Caves entrance 22951 | -6/Zion | Identified exit to Deep Caves 22963 | -6/Zion | Entered Deep Caves 22963 | -6/Deep Caves | Accompanied by 4 allies 23376 | -6/Deep Caves | Z-Facility disabled 23486 | -6/Deep Caves | Found Prototype Protection 23486 | -6/Deep Caves | Identified Zio. Weapon Casing 23489 | -6/Deep Caves | Found Prototype Device 23489 | -6/Deep Caves | Identified Zio. Metafield Generator 23566 | -6/Deep Caves | Found Zio. Weapon Casing 23571 | -6/Deep Caves | Found Zio. Weapon Casing 23748 | -6/Deep Caves | Lost 4 parts (1n3u) 23883 | -6/Deep Caves | Found Zio. Weapon Casing 23962 | -6/Deep Caves | Found Prototype Protection 23962 | -6/Deep Caves | Identified Zio. Heavy Carapace 24292 | -6/Deep Caves | Found Surveybot 24 Chip 24295 | -6/Deep Caves | Found Surveybot 24 Scanner 24805 | -6/Deep Caves | Discovered new exit (range 7) 24815 | -6/Deep Caves | Identified exit to Proximity Caves 24978 | -6/Deep Caves | Found Zio. Weapon Casing 24983 | -6/Deep Caves | Found Zio. Weapon Casing 25075 | -6/Deep Caves | Found Zio. Heavy Carapace 25172 | -6/Deep Caves | Found Zio. Weapon Casing 25368 | -6/Deep Caves | Spotted as-80633 25382 | -6/Deep Caves | Allies destroyed as-80633 25473 | -6/Deep Caves | Spotted as-41969 25511 | -6/Deep Caves | Triggered Deep Caves wall 25511 | -6/Deep Caves | Spotted AS-56232 25511 | -6/Deep Caves | Spotted AS-86976 25516 | -6/Deep Caves | Destroyed AS-56232 25519 | -6/Deep Caves | Destroyed AS-86976 25540 | -6/Deep Caves | Destroyed 29 combat bots 25682 | -6/Deep Caves | Exposed GOLEM chamber 25718 | -6/Deep Caves | Found Corrupted GOLEM Unit 25803 | -6/Deep Caves | Found GOLEM Unit 25837 | -6/Deep Caves | Found GOLEM Unit 25916 | -6/Deep Caves | Found GOLEM Unit 25921 | -6/Deep Caves | Found GOLEM Unit 25925 | -6/Deep Caves | Found GOLEM Unit 25929 | -6/Deep Caves | Destroyed 10 combat bots 26051 | -6/Deep Caves | Found GOLEM Unit 26223 | -6/Deep Caves | Build established: Scavenger-Golem 26573 | -6/Deep Caves | Build established: Golem 27421 | -6/Deep Caves | Build established: Skirmisher 27755 | -6/Deep Caves | Build established: Golem 28004 | -6/Deep Caves | Entered Proximity Caves 29102 | -5/Proximity Caves | Spotted B-75 Beast 29177 | -5/Proximity Caves | Learned 4 Factory zone layouts 30640 | -5/Proximity Caves | Entered Factory 30640 | -5/Factory | Evolved 2 slots: Utility x2 30641 | -5/Factory | Identified exit to Factory 30643 | -5/Factory | Loaded intel: 26 terminal locations 30841 | -5/Factory | Identified exit to Upper Caves 31439 | -5/Factory | Entered Upper Caves 32520 | -5/Upper Caves | Learned location of 1 exit from Factory 32923 | -5/Upper Caves | Discovered new exit (range 10) 32968 | -5/Upper Caves | Identified exit to Upper Caves 33286 | -5/Upper Caves | Entered another Upper Caves area 33286 | -5/Upper Caves | Spotted 72-VSW(f) 33286 | -5/Upper Caves | Spotted OJ-7C2(f) 33287 | -5/Upper Caves | Encountered a Master Thief 33287 | -5/Upper Caves | Encountered a Master Thief 33291 | -5/Upper Caves | Supersonic Drone Bay stolen by Master Thief 33352 | -5/Upper Caves | Discovered exit to Factory (range 19) 33620 | -5/Upper Caves | Build established: Skirmisher 34342 | -5/Upper Caves | Learned 8 Factory zone layouts 34536 | -5/Upper Caves | Discovered new exit (range 7) 34552 | -5/Upper Caves | Identified exit to Zhirov 34556 | -5/Upper Caves | Entered Zhirov 34556 | -5/Zhirov | Discovered new exit (range 3) 34589 | -5/Zhirov | Met Zhirov 34628 | -5/Zhirov | Learned location of Quarantine (-3) 34628 | -5/Zhirov | Learned location of Testing (-2) 34628 | -5/Zhirov | Learned location of Command (-1) 34639 | -5/Zhirov | Zhirov requested help retrieving the SGEMP Prototype 34672 | -5/Zhirov | Found Alien Artifact 34672 | -5/Zhirov | Identified Integrated Reactor 34672 | -5/Zhirov | Installed Integrated Reactor, increased core energy generation (+10) 34694 | -5/Zhirov | Found Alien Artifact 34914 | -5/Zhirov | Identified exit to Proximity Caves 35078 | -5/Zhirov | Build established: Golem 35248 | -5/Zhirov | Entered Proximity Caves 35301 | -4/Proximity Caves | Learned location of 1 exit from Research 37076 | -4/Proximity Caves | Entered Factory 37076 | -4/Factory | Evolved 2 slots: Utility x2 37077 | -4/Factory | Identified exit to Research 37624 | -4/Factory | Identified exit to Upper Caves 38024 | -4/Factory | Entered Upper Caves 38024 | -4/Upper Caves | Spotted M4-JT1(f) 38024 | -4/Upper Caves | Spotted WN-K9X(f) 38025 | -4/Upper Caves | Encountered a Master Thief 38025 | -4/Upper Caves | Encountered a Master Thief 38029 | -4/Upper Caves | Spotted EP-0XB(f) 38030 | -4/Upper Caves | Encountered a Master Thief 38031 | -4/Upper Caves | Destroyed M4-JT1(f) 38033 | -4/Upper Caves | Alien Artifact stolen by Master Thief 38037 | -4/Upper Caves | Destroyed EP-0XB(f) 38301 | -4/Upper Caves | Encountered a Warlord checkpoint 38918 | -4/Upper Caves | Build established: Skirmisher 39655 | -4/Upper Caves | Discovered new exit (range 9) 39693 | -4/Upper Caves | Identified exit to Upper Caves 39883 | -4/Upper Caves | Entered another Upper Caves area 39905 | -4/Upper Caves | Build established: Golem 39907 | -4/Upper Caves | Discovered exit to Research (range 15) 39911 | -4/Upper Caves | Learned Research terminal intel 40220 | -4/Upper Caves | Attracted the attention of an 0b10 checkpoint 41220 | -4/Upper Caves | Spotted YR-V47(f) 41222 | -4/Upper Caves | Encountered a Master Thief 41224 | -4/Upper Caves | Spotted KC-TRR(f) 41224 | -4/Upper Caves | Spotted ZW-BWP(f) 41225 | -4/Upper Caves | Encountered a Master Thief 41225 | -4/Upper Caves | Encountered a Master Thief 41226 | -4/Upper Caves | Spotted RU-3K6(f) 41227 | -4/Upper Caves | Encountered a Master Thief 41227 | -4/Upper Caves | Destroyed ZW-BWP(f) 41227 | -4/Upper Caves | Destroyed KC-TRR(f) 41230 | -4/Upper Caves | CL-ANK's Mallet stolen by Master Thief 41231 | -4/Upper Caves | Destroyed YR-V47(f) 41565 | -4/Upper Caves | Spotted B-86 Titan 41628 | -4/Upper Caves | Revealed the true nature of CR-A16's Pointy Stick 41631 | -4/Upper Caves | Destroyed B-86 Titan 42292 | -4/Upper Caves | Discovered new exit (range 6) 42407 | -4/Upper Caves | Attacked by a delusional Derelict stockpiling parts 42533 | -4/Upper Caves | Identified exit to Warlord 42535 | -4/Upper Caves | Entered Warlord 42645 | -4/Warlord | Discovered new exit (range 9) 42815 | -4/Warlord | Found Prototype Device 42816 | -4/Warlord | Identified Minesniffer Drone Bay 43222 | -4/Warlord | Received a Watcher feed algorithm from an ecstatic Tinkerer 43623 | -4/Warlord | Learned Armory trap positions 43623 | -4/Warlord | Learned Research security intel 43623 | -4/Warlord | Learned Factory terminal intel 43623 | -4/Warlord | Learned Factory fabricator intel 43623 | -4/Warlord | Learned Factory scanalyzer intel 43623 | -4/Warlord | Learned Armory scanalyzer intel 43679 | -4/Warlord | Warlord's base attacked by MAIN.C 43682 | -4/Warlord | Build established: Commander-Golem 43682 | -4/Warlord | Met Warlord 43701 | -4/Warlord | Opened Warlord's prototype stash 43708 | -4/Warlord | Found System Purifier 43715 | -4/Warlord | Found Prototype Hackware 43729 | -4/Warlord | Found Prototype Device 43735 | -4/Warlord | Found Prototype Reactor 43912 | -4/Warlord | Identified Exp. Cloaking Device 43919 | -4/Warlord | Found Prototype Launcher 43923 | -4/Warlord | Identified Vortex Chain Reactor 43924 | -4/Warlord | Found Prototype Energy Cannon 43928 | -4/Warlord | Found Prototype Energy Cannon 43969 | -4/Warlord | Identified System Mapper 43977 | -4/Warlord | Identified Vortex Driver (x2) 43983 | -4/Warlord | Identified Vortex Catalyst Activator 44026 | -4/Warlord | Spotted Striker 44029 | -4/Warlord | Warlord forces counterattacked 44060 | -4/Warlord | Spotted Executioner 44124 | -4/Warlord | Spotted Executioner 44131 | -4/Warlord | Destroyed 1G-3BZ(g) 44196 | -4/Warlord | Spotted Striker 44200 | -4/Warlord | Destroyed Striker 44267 | -4/Warlord | Identified exit to Proximity Caves 44269 | -4/Warlord | Entered Proximity Caves 44269 | -3/Proximity Caves | Accompanied by 4 allies 44575 | -3/Proximity Caves | Build established: Skirmisher 44718 | -3/Proximity Caves | Received a Behemoth hack from an annoying Tinkerer 44883 | -3/Proximity Caves | Spotted B-86 Titan 44886 | -3/Proximity Caves | Befriended a Behemoth using the annoying Tinkerer's hack 45194 | -3/Proximity Caves | Build established: Golem 45877 | -3/Proximity Caves | Build established: Infiltrator-Golem 45927 | -3/Proximity Caves | Discovered exit to Research (range 21) 46468 | -3/Proximity Caves | Entered Research 46468 | -3/Research | Accompanied by 2 allies 46468 | -3/Research | Evolved 2 slots: Power x1, Weapon x1 46469 | -3/Research | Identified exit to Armory 46469 | -3/Research | Identified exit to Quarantine 46470 | -3/Research | Identified exit to Research 46472 | -3/Research | Loaded intel: 24 terminal locations 46780 | -3/Research | Build established: Generator-Golem 46937 | -3/Research | Found Antimissile System 47078 | -3/Research | Found Fusion Bomb Launcher 47115 | -3/Research | Found Prototype Processor 47185 | -3/Research | Spotted B-86 Titan 47216 | -3/Research | Destroyed B-86 Titan 47385 | -3/Research | Destroyed 8 combat bots 47392 | -3/Research | Lost 5 parts (1p2u2w) 47517 | -3/Research | First assault squad dispatched 47545 | -3/Research | Incoming assault squad redirected 47560 | -3/Research | Discovered exit to Quarantine (range 13) 47732 | -3/Research | Entered Quarantine 47900 | -3/Quarantine | Found Adv. Micro-nuke Launcher 47903 | -3/Quarantine | Found Adv. Micro-nuke Launcher 48043 | -3/Quarantine | Spotted Alpha 7 48080 | -3/Quarantine | Destroyed Alpha 7 48152 | -3/Quarantine | Found Alien Artifact 48209 | -3/Quarantine | Identified Spectral Analyzer 48212 | -3/Quarantine | Found Alien Artifact 48250 | -3/Quarantine | Found Alien Impact Weapon 48421 | -3/Quarantine | Found Alien Launcher 48590 | -3/Quarantine | Found Alien Artifact 48590 | -3/Quarantine | Identified Phase Armor 48732 | -3/Quarantine | First assault squad dispatched 48834 | -3/Quarantine | Found Alien Energy Cannon 48929 | -3/Quarantine | Identified Core Stripper 48958 | -3/Quarantine | Found Alien Artifact 48965 | -3/Quarantine | Found Alien Artifact 48978 | -3/Quarantine | Found Alien Artifact 49165 | -3/Quarantine | Discovered exit to Research (range 14) 49276 | -3/Quarantine | Cryocooling Duct disabled 49291 | -3/Quarantine | Ambient heat levels rising (+20) 49291 | -3/Quarantine | Non-combat units ordered to evacuate 49325 | -3/Quarantine | Found Alien Artifact 49325 | -3/Quarantine | Identified Core Reset Matrix 49325 | -3/Quarantine | Identified Phase Redirector 49325 | -3/Quarantine | Identified Dimensional Node Initializer 49325 | -3/Quarantine | Identified Transdimensional Reconstructor 49325 | -3/Quarantine | Identified Hpw. Transdimensional Reconstructor 49325 | -3/Quarantine | Identified Subatomic Replicator 49325 | -3/Quarantine | Identified Core Cannon 49325 | -3/Quarantine | Identified Sigix Terminator 49325 | -3/Quarantine | Used Core Reset Matrix 49329 | -3/Quarantine | Detected hypermatrix surge 49329 | -3/Quarantine | Sensed 8 artifacts in vicinity 49548 | -3/Quarantine | Discovered exit to Research (range 3) 49695 | -3/Quarantine | Entered Research 49695 | -2/Research | Warlord forces began assault on 0b10 49695 | -2/Research | Evolved 2 slots: Propulsion x2 49736 | -2/Research | Discovered new exit (range 17) 49772 | -2/Research | Identified exit to Testing 49805 | -2/Research | Research machine network offline 50175 | -2/Research | Found Prototype Device 50268 | -2/Research | Identified Exp. Transmission Jammer 50447 | -2/Research | Build established: Generator-Skirmisher 50449 | -2/Research | Entered Testing 50556 | -2/Testing | Garrison activated, responded to threat 50782 | -2/Testing | Build established: Generator-Mutant 51015 | -2/Testing | Unstable Terrabomb Derivative detonated 51075 | -2/Testing | Spotted Fortress 51106 | -2/Testing | Destroyed Fortress 51124 | -2/Testing | Found Prototype Device 51139 | -2/Testing | Found Prototype Device 51142 | -2/Testing | Found Prototype Device 51201 | -2/Testing | Identified Exp. EM Disruption Field 51207 | -2/Testing | Found Unknown Protection 51207 | -2/Testing | Identified Hvy. Insulated Plating 51209 | -2/Testing | Identified Thermal Barrier 51224 | -2/Testing | Identified Exp. Force Field 51354 | -2/Testing | Discovered new exit (range 5) 51362 | -2/Testing | Identified exit to Section 7 51497 | -2/Testing | Entered Section 7 51498 | -2/Section 7 | Sensed 17 artifacts in vicinity 51548 | -2/Section 7 | Spotted S7 Guard 51558 | -2/Section 7 | Found Integrated Thermoelectric Network 51558 | -2/Section 7 | Installed Integrated Thermoelectric Network, gained heat-energy exchange potential 51626 | -2/Section 7 | Found Spacefold Activator 52004 | -2/Section 7 | Found Core Reset Matrix 52090 | -2/Section 7 | Warped through subspace 52090 | -2/Section 7 | Spotted Alpha 7 52090 | -2/Section 7 | Spotted Alpha 7 52106 | -2/Section 7 | Destroyed Alpha 7 52150 | -2/Section 7 | Destroyed Alpha 7 52177 | -2/Section 7 | Found Prototype Processor 52177 | -2/Section 7 | Identified Exp. Target Analyzer 52208 | -2/Section 7 | Found Integrity Redistributor 52333 | -2/Section 7 | Found Integrated Dissipator 52333 | -2/Section 7 | Installed Integrated Dissipator, increased core heat dissipation (+20) 52449 | -2/Section 7 | Identified exit to Access 52806 | -2/Section 7 | Initialized slip node 52889 | -2/Section 7 | Found Prototype Ballistic Gun 52892 | -2/Section 7 | Core integrity fell below 50% 52938 | -2/Section 7 | Spotted B-99 Colossus 53043 | -2/Section 7 | First assault squad dispatched 53073 | -2/Section 7 | Incoming assault squad redirected 53109 | -2/Section 7 | Found Integrity Redistributor 53177 | -2/Section 7 | Found LRC Matter Compressor 53177 | -2/Section 7 | Installed LRC Matter Compressor, increased matter storage capacity (+125) 53189 | -2/Section 7 | Found LRC Armor 53189 | -2/Section 7 | Installed LRC Armor, increased core integrity (+250) 53211 | -2/Section 7 | Build established: Generator-Skirmisher 53362 | -2/Section 7 | Spotted Striker 53364 | -2/Section 7 | Destroyed Striker 53368 | -2/Section 7 | Spotted Striker 53379 | -2/Section 7 | Destroyed Striker 53394 | -2/Section 7 | Spotted Executioner 53509 | -2/Section 7 | Spotted Striker 53509 | -2/Section 7 | Spotted Striker 53542 | -2/Section 7 | Destroyed Striker 53545 | -2/Section 7 | Destroyed Striker 53553 | -2/Section 7 | Found Sigix Sheargun 53556 | -2/Section 7 | Found Sigix Sheargun 53622 | -2/Section 7 | Found Sigix Shearcannon 53663 | -2/Section 7 | Spotted Executioner 53781 | -2/Section 7 | Integrated with Sigix Exoskeleton 53802 | -2/Section 7 | Used Subatomic Replicator to replicate Hpw. Transdimensional Reconstructor 53832 | -2/Section 7 | Warped through subspace to slip node 53902 | -2/Section 7 | Entered Access 53902 | -1/Access | Evolved 2 slots: Utility x2 53907 | -1/Access | Emitted hypermatrix ping 53912 | -1/Access | Assembled emerged from beneath the floor 53965 | -1/Access | Identified exit to Command 54069 | -1/Access | Build established: Alien-Sigix 54078 | -1/Access | Assembled emerged from beneath the floor 54107 | -1/Access | Assembled emerged from beneath the floor 54139 | -1/Access | Assembled emerged from beneath the floor 54199 | -1/Access | Entered Command 54204 | -1/Command | Emitted hypermatrix ping 54209 | -1/Command | Assembled emerged from beneath the floor 54436 | -1/Command | Spotted M Guard 54438 | -1/Command | Spotted Combat Programmer 54445 | -1/Command | Spotted Combat Programmer 54446 | -1/Command | Destroyed Combat Programmer 54449 | -1/Command | First assault squad dispatched 54455 | -1/Command | Spotted M Guard 54456 | -1/Command | Destroyed Combat Programmer 54472 | -1/Command | Incoming assault squad redirected 54472 | -1/Command | Destroyed M Guard 54480 | -1/Command | Destroyed M Guard 54480 | -1/Command | All MAIN.C guards destroyed 54484 | -1/Command | Found Prototype Reactor 54484 | -1/Command | Identified Zero-point Reactor 54496 | -1/Command | Met MAIN.C 54496 | -1/Command | 0b10 Conduit disabled 54510 | -1/Command | MAIN.C's shell transforms into a squad of autonomous robots 54510 | -1/Command | Destroyed MAIN.C Shell 54510 | -1/Command | Spotted M Shell/Def 54510 | -1/Command | Spotted M Shell/Atk 54510 | -1/Command | Spotted M Shell/Def 54510 | -1/Command | Spotted M Shell/Atk 54511 | -1/Command | Spotted M Shell/Def 54512 | -1/Command | Spotted M Shell/Atk 54512 | -1/Command | Spotted M Shell/Atk 54512 | -1/Command | Spotted M Shell/Def 54513 | -1/Command | MAIN.C activated Command garrisons 54524 | -1/Command | Sigix Exoskeleton integrity reduced to 80% 54528 | -1/Command | Discovered new exit (range 18) 54545 | -1/Command | Found Prototype Device 54545 | -1/Command | Identified Exp. Weapon Cycler 54551 | -1/Command | Found Prototype Device 54551 | -1/Command | Identified Exp. System Purifier 54563 | -1/Command | Destroyed MAIN.C 54565 | -1/Command | Discovered new exit (range 34) 54565 | -1/Command | Discovered new exit (range 107) 54565 | -1/Command | Extracted map data and part IDs from MAIN.C's data core 54592 | -1/Command | Found Zero-point Reactor 54595 | -1/Command | Found Zero-point Reactor 54598 | -1/Command | Found Exp. Force Field 54600 | -1/Command | Found Exp. Hardlight Generator 54633 | -1/Command | Destroyed M Shell/Atk 54641 | -1/Command | Destroyed M Shell/Atk 54643 | -1/Command | Destroyed M Shell/Def 55254 | -1/Command | Assembled emerged from beneath the floor 55274 | -1/Command | Assembled emerged from beneath the floor 55287 | -1/Command | Assembled emerged from beneath the floor 55309 | -1/Command | Assembled emerged from beneath the floor 55421 | -1/Command | Assembled emerged from beneath the floor 55504 | -1/Command | Assembled emerged from beneath the floor 55675 | -1/Command | Warped through subspace to slip node 55675 | -1/Command | Discovered new exit (range 5) 55684 | -1/Command | Entered Access_0 55685 | -1/Access_0 | Sensed 2 artifacts in vicinity 55686 | -1/Access_0 | Met Architect 55695 | -1/Access_0 | Destroyed A8 55699 | -1/Access_0 | Core integrity fell below 50% 55703 | -1/Access_0 | Architect warped through subspace 55726 | -1/Access_0 | Subspace Access Node disabled 55755 | -1/Access_0 | Architect warped through subspace 55793 | -1/Access_0 | A6 warped into view 55800 | -1/Access_0 | Destroyed A6 55811 | -1/Access_0 | Architect warped through subspace 55828 | -1/Access_0 | Architect warped through subspace 55857 | -1/Access_0 | Architect warped through subspace 55877 | -1/Access_0 | Architect warped through subspace 55884 | -1/Access_0 | Destroyed 7 combat bots 55885 | -1/Access_0 | Subspace Access Node disabled 55888 | -1/Access_0 | Subspace Access Node disabled 55901 | -1/Access_0 | A5 warped into view 55934 | -1/Access_0 | Architect warped through subspace 55952 | -1/Access_0 | Destroyed A5 55972 | -1/Access_0 | Architect warped through subspace 55987 | -1/Access_0 | Architect warped through subspace 55996 | -1/Access_0 | Architect warped through subspace 56000 | -1/Access_0 | Subspace Access Node disabled 56029 | -1/Access_0 | Destroyed A2 56030 | -1/Access_0 | Extracted Singularity Gate Test 138-C access codes from A2's data core 56045 | -1/Access_0 | A4 warped into view 56045 | -1/Access_0 | Singularity Gate disabled 56077 | -1/Access_0 | Singularity Gate disabled 56118 | -1/Access_0 | Destroyed A4 56123 | -1/Access_0 | Destroyed Architect 56125 | -1/Access_0 | Extracted unknown sensor trigger ID from Architect's data core 56154 | -1/Access_0 | Found Hpw. Transdimensional Reconstructor 56156 | -1/Access_0 | Found Prototype Hackware 56156 | -1/Access_0 | Identified Architect God Chip A 56163 | -1/Access_0 | Found Prototype Hackware 56163 | -1/Access_0 | Identified Architect God Chip D 56167 | -1/Access_0 | Found Enh. Gamma Bomb Array 56169 | -1/Access_0 | Found Beam Splitter 56170 | -1/Access_0 | Destroyed 8 combat bots 56171 | -1/Access_0 | Found Adv. EM Disruption Field 56174 | -1/Access_0 | Found Point Singularity Launcher 56185 | -1/Access_0 | Found Modified Sigix Sheargun 56273 | -1/Access_0 | Found Sigix Broadsword 56299 | -1/Access_0 | Found Exp. Shield Generator 56333 | -1/Access_0 | Found Hellfire Missile Launcher 56364 | -1/Access_0 | Found Prototype Device 56364 | -1/Access_0 | Identified Desublimator 56407 | -1/Access_0 | A3 warped into view 56416 | -1/Access_0 | Destroyed A3 56423 | -1/Access_0 | Found Prototype Ballistic Gun 56423 | -1/Access_0 | Identified A3's Sniper Rifle 56515 | -1/Access_0 | Sigix Exoskeleton integrity reduced to 60% 56572 | -1/Access_0 | Warped through subspace to slip node 56572 | -1/Access_0 | Discovered new exit (range 8) 56576 | *** | Heading to fleet! Last Messages --------------- range." 56521_ Quantum Shear penetrates Enhanced Grunt. 56523_ Enhanced Grunt destroyed. 56523_ Quantum Shear penetrates Wall. 56523_ Quantum Shear penetrates Earth. 56523_ Quantum Shear penetrates Wall. 56524_ Quantum Shear penetrates Enhanced Grunt. 56524_ Enhanced Grunt destroyed. 56524_ Quantum Shear penetrates Wall. 56524_ Quantum Shear penetrates Earth. 56526_ Quantum Shear penetrates Enhanced Grunt. 56526_ Destroyed Adv. Particle Charger. 56526_ Quantum Shear penetrates Enhanced Grunt. 56526_ Enhanced Grunt destroyed. 56526_ Quantum Shear penetrates Earth. 56546_ Quantum Shear penetrates Enhanced Sentry. 56547_ Enhanced Sentry destroyed. 56572_ Warped through subspace, drawn to slip node. 56572_ EXIT=FOUND [Achievement: I Was Wrong!] Map ----- +----------------------------------------------------+ | | | | | | | | | | | | | | | | | | | | | | | | | | | | | | | | | ???????????#############################?????????? | | ???????????#############################?????????? | | ??????????###############################????????? | | ?????????#################################???????? | | ?????????#################################???????? | | ?????????#################################???????? | | ????????###################################??????? | | ????????################# #################??????? | | ????????################ ################??????? | | ????????################ X ################??????? | | ???????################# ################??????? | | ???????################ #################?????? | | ???????################ #################??????? | | ???????################# ################??????? | | ???????################ ################??????? | | ??????################# #################??????? | | ??????################# < ################??????? | | ???????################ ################???????? | | ???????################# ################???????? | | ???????###################################???????? | | ???????###################################???????? | | ???????###################################???????? | | ????????#################################????????? | | ????????#################################????????? | | ????????#################################????????? | | ?????????###############################?????????? | | ??????????#############################??????????? | | ??????????#############################??????????? | | ???????????###########################???????????? | | ????????????#########################????????????? | | ?????????????#######################?????????????? | | ???????????????###################???????????????? | | ????????????????#################????????????????? | | ???????????????????###########???????????????????? | +----------------------------------------------------+ Best States ------------- Heat Dissipation 142 Coolant Potential 50 Energy Generation 85 Energy Capacity 2940 Matter Stores 425 Matter Capacity 425 Sight Range 24 Robot Scan Range 20 Terrain Scan Density 85 Jamming Range 22 Cloak Strength 4 Additional Mass Support 20 Corruption Containment 12 Armor Coverage 1425 Resistance: KI 50 Resistance: TH 75 Resistance: EX 50 Resistance: EM 75 Resistance: I 50 Resistance: S 50 Resistance: P 50 Core Shielding 40 Utility Shielding 90 Weapon Shielding 100 Weapon Cycling 30 Phase Shifting 15 Evasion (%) 84 Targeting Accuracy 8 Target Analysis 12 Core Analysis 8 Armor Integrity Analysis 40 Recoil Reduction 2 Matter Filtering 50 Energy Filtering 30 Offensive Hacking 100 Defensive Hacking 100 Authchip Count 2 Trap Extractor Capacity 6 Item Schematics ----------------- Centrium Heavy Treads | -2/Section 7 | Archive Exp. Force Field | -2/Section 7 | Archive Cld. Antigrav System | -2/Section 7 | Archive Adv. Gravity Neutralizer | -2/Section 7 | Archive Exp. Actuator Array | -2/Section 7 | Archive Exp. Myomer Leg | -2/Section 7 | Archive Imp. Energy Well | -2/Section 7 | Archive Hdn. Centrium Leg | -2/Section 7 | Archive Helical Railgun | -2/Section 7 | Archive Prc. Phase Gun | -2/Section 7 | Archive Exp. Biometal Medium Treads | -2/Section 7 | Archive Robot Schematics ------------------ None Fabricated ------------ Nothing Alien Tech Used ----------------- Integrated Reactor Phase Armor Core Stripper Core Reset Matrix Integrated Thermoelectric Network Transdimensional Reconstructor Integrated Dissipator Spacefold Activator Dimensional Node Initializer Core Cannon LRC Matter Compressor LRC Armor Sigix Exoskeleton Sigix Sheargun Phase Redirector Sigix Shearcannon Subatomic Replicator High-powered Transdimensional Reconstructor Modified Sigix Sheargun Sigix Broadsword Achievements -------------- Beloved Brute Force I Was Wrong! The Bigger They Are Woof! l33t h4x0r Challenges ------------ None Game ------ Seed MolecularSmallCalibrator Manual? 0 Play Time 14:32:30 Cumulative 165.2 hours Start 2022.04.28 @ 09:19:18 End 2022.05.18 @ 18:52:37 Sessions 41 Manual Loads 0 Difficulty Rogue Special Mode None Game No. 27 Rogue 20 Adventurer 1 Explorer 6 Win Type 2 Total 8 Types 4/1/3/0/0/0/0/0/0 Lore% 75 Gallery% 69 Achievement% 64 Wizard Run 0 Options --------- ASCII 0 Keyboard 0 Movement Mouse Keybinds 0 Fullscreen 1 Font 18/SmallcapsGlow Map View 76x50 Tactical HUD 1 Map Filters NONE Filters NONE Steam 1 RUN: 9ef3ee24-ec8b-4308-8a34-1dd836b322b9